Workbook

Sheet PlayerLevelConfig
B1: PlayerLv | C1: Exp | D1: MaxEnergy | E1: AddEnergy | F1: ExtraAdd | G1: MazeTreasureMax | H1: HeroPower | I1: EquipPower | J1: DifferDemonsPower | K1: GiftPower | L1: RingsPower | M1: SoulPower | N1: TreasurePower
B2: int | C2: int | D2: int | E2: int | F2: int | G2: int | H2: int | I2: int | J2: int | K2: int | L2: int | M2: int | N2: int
B3: 2 | C3: 2 | D3: 2 | E3: 2 | F3: 2 | G3: 2 | H3: 3 | I3: 3 | J3: 3 | K3: 3 | L3: 3 | M3: 3 | N3: 3
B4: 角色等级 | C4: 升至下一级所需的经验 | D4: 角色等级对应的体力上限（废弃） | E4: 升级增加当前体力的数额（废弃） | F4: 购买商品额外增益（万分比） | G4: 迷宫寻宝道具存储上限 | H4: 猎妖师养成 | I4: 装备养成 | J4: 异妖养成 | K4: 天赋养成 | L4: 戒灵养成 | M4: 魂印养成 | N4: 法宝养成
A5: 默认值 | B5: 0 | C5: 0 | D5: 0 | E5: 0
A6: 正确性校对
A7: 校对值
B8: 1 | C8: 120 | D8: 0 | E8: 0 | F8: 0 | G8: 18000 | H8: 292 | I8: 105 | J8: 0 | K8: 0 | L8: 0 | M8: 0 | N8: 0
B9: 2 | C9: 360 | D9: 0 | E9: 0 | F9: 0 | G9: =G8 -> 18000 | H9: 585 | I9: 210 | J9: 0 | K9: 0 | L9: 0 | M9: 0 | N9: 0
B10: 3 | C10: 720 | D10: 0 | E10: 0 | F10: 0 | G10: 18000 | H10: 878 | I10: 315 | J10: 0 | K10: 0 | L10: 0 | M10: 0 | N10: 0
B11: 4 | C11: 1200 | D11: 0 | E11: 0 | F11: 0 | G11: =G10 -> 18000 | H11: 1170 | I11: 420 | J11: 0 | K11: 0 | L11: 0 | M11: 0 | N11: 0
B12: 5 | C12: 1700 | D12: 0 | E12: 0 | F12: 0 | G12: 18000 | H12: 1463 | I12: 525 | J12: 0 | K12: 0 | L12: 0 | M12: 0 | N12: 0
B13: 6 | C13: 2280 | D13: 0 | E13: 0 | F13: 0 | G13: =G12 -> 18000 | H13: 1756 | I13: 630 | J13: 0 | K13: 0 | L13: 0 | M13: 0 | N13: 0
B14: 7 | C14: 3680 | D14: 0 | E14: 0 | F14: 0 | G14: 18000 | H14: 2049 | I14: 735 | J14: 0 | K14: 0 | L14: 0 | M14: 0 | N14: 0
B15: 8 | C15: 5140 | D15: 0 | E15: 0 | F15: 0 | G15: =G14 -> 18000 | H15: 2341 | I15: 840 | J15: 0 | K15: 0 | L15: 0 | M15: 0 | N15: 0
B16: 9 | C16: 6680 | D16: 0 | E16: 0 | F16: 0 | G16: 18000 | H16: 2634 | I16: 945 | J16: 0 | K16: 0 | L16: 0 | M16: 0 | N16: 0
B17: 10 | C17: 8770 | D17: 0 | E17: 0 | F17: 0 | G17: =G16 -> 18000 | H17: 2927 | I17: 1050 | J17: 0 | K17: 0 | L17: 0 | M17: 0 | N17: 0
B18: 11 | C18: 11650 | D18: 0 | E18: 0 | F18: 0 | G18: 18000 | H18: 3220 | I18: 1155 | J18: 0 | K18: 0 | L18: 0 | M18: 0 | N18: 0
B19: 12 | C19: 14700 | D19: 0 | E19: 0 | F19: 0 | G19: =G18 -> 18000 | H19: 3512 | I19: 1260 | J19: 0 | K19: 0 | L19: 0 | M19: 0 | N19: 0
B20: 13 | C20: 17860 | D20: 0 | E20: 0 | F20: 0 | G20: 18000 | H20: 3805 | I20: 1365 | J20: 0 | K20: 0 | L20: 0 | M20: 0 | N20: 0
B21: 14 | C21: 20880 | D21: 0 | E21: 0 | F21: 0 | G21: =G20 -> 18000 | H21: 4098 | I21: 1470 | J21: 0 | K21: 0 | L21: 0 | M21: 0 | N21: 0
B22: 15 | C22: 23940 | D22: 0 | E22: 0 | F22: 0 | G22: 18000 | H22: 4390 | I22: 1575 | J22: 0 | K22: 0 | L22: 0 | M22: 0 | N22: 0
B23: 16 | C23: 27030 | D23: 0 | E23: 0 | F23: 0 | G23: =G22 -> 18000 | H23: 4683 | I23: 1680 | J23: 0 | K23: 0 | L23: 0 | M23: 0 | N23: 0
B24: 17 | C24: 30190 | D24: 0 | E24: 0 | F24: 0 | G24: 18000 | H24: 4976 | I24: 1785 | J24: 0 | K24: 0 | L24: 0 | M24: 0 | N24: 0
B25: 18 | C25: 33330 | D25: 0 | E25: 0 | F25: 0 | G25: =G24 -> 18000 | H25: 5269 | I25: 1890 | J25: 0 | K25: 0 | L25: 0 | M25: 0 | N25: 0
B26: 19 | C26: 36260 | D26: 0 | E26: 0 | F26: 0 | G26: 18000 | H26: 5561 | I26: 1995 | J26: 0 | K26: 0 | L26: 0 | M26: 0 | N26: 0
B27: 20 | C27: 39380 | D27: 0 | E27: 0 | F27: 0 | G27: =G26 -> 18000 | H27: 5854 | I27: 2100 | J27: 0 | K27: 0 | L27: 0 | M27: 0 | N27: 0
B28: 21 | C28: 42815 | D28: 0 | E28: 0 | F28: 0 | G28: =G8+2000 -> 20000 | H28: 6147 | I28: 2205 | J28: 0 | K28: 0 | L28: 0 | M28: 0 | N28: 0
B29: 22 | C29: 46325 | D29: 0 | E29: 0 | F29: 0 | G29: =G9+2000 -> 20000 | H29: 6440 | I29: 2310 | J29: 0 | K29: 0 | L29: 0 | M29: 0 | N29: 0
B30: 23 | C30: 50215 | D30: 0 | E30: 0 | F30: 0 | G30: 20000 | H30: 7378 | I30: 2310 | J30: 0 | K30: 0 | L30: 0 | M30: 0 | N30: 0
B31: 24 | C31: 54505 | D31: 0 | E31: 0 | F31: 0 | G31: 20000 | H31: 7699 | I31: 2310 | J31: 1497 | K31: 0 | L31: 0 | M31: 0 | N31: 0
B32: 25 | C32: 59210 | D32: 0 | E32: 0 | F32: 0 | G32: 20000 | H32: 8020 | I32: 2310 | J32: 1560 | K32: 0 | L32: 0 | M32: 0 | N32: 0
B33: 26 | C33: 64350 | D33: 0 | E33: 0 | F33: 0 | G33: 20000 | H33: 8468 | I33: 2310 | J33: 1745 | K33: 46 | L33: 0 | M33: 0 | N33: 0
B34: 27 | C34: 69940 | D34: 0 | E34: 0 | F34: 0 | G34: 20000 | H34: 8794 | I34: 2310 | J34: 1812 | K34: 48 | L34: 0 | M34: 0 | N34: 0
B35: 28 | C35: 76000 | D35: 0 | E35: 0 | F35: 0 | G35: 20000 | H35: 9120 | I35: 2310 | J35: 1880 | K35: 50 | L35: 0 | M35: 0 | N35: 0
B36: 29 | C36: 82545 | D36: 0 | E36: 0 | F36: 0 | G36: 20000 | H36: 9647 | I36: 2310 | J36: 2126 | K36: 106 | L36: 0 | M36: 0 | N36: 0
B37: 30 | C37: 89595 | D37: 0 | E37: 0 | F37: 5000 | G37: =G36 -> 20000 | H37: 9980 | I37: 2310 | J37: 2200 | K37: 110 | L37: 0 | M37: 1320 | N37: 0
B38: 31 | C38: 97160 | D38: 0 | E38: 0 | F38: 5000 | G38: =G28+2000 -> 22000 | H38: 10598 | I38: 4088 | J38: 2431 | K38: 145 | L38: 0 | M38: 1395 | N38: 0
B39: 32 | C39: 105270 | D39: 0 | E39: 0 | F39: 5000 | G39: 22000 | H39: 10940 | I39: 4220 | J39: 2510 | K39: 150 | L39: 0 | M39: 1440 | N39: 0
B40: 33 | C40: 113930 | D40: 0 | E40: 0 | F40: 5000 | G40: 22000 | H40: 10940 | I40: 4220 | J40: 2746 | K40: 291 | L40: 0 | M40: 1523 | N40: 0
B41: 34 | C41: 123160 | D41: 0 | E41: 0 | F41: 5000 | G41: 22000 | H41: 10940 | I41: 4220 | J41: 2830 | K41: 300 | L41: 0 | M41: 1570 | N41: 0
B42: 35 | C42: 132985 | D42: 0 | E42: 0 | F42: 5000 | G42: 22000 | H42: 11569 | I42: 4220 | J42: 2877 | K42: 388 | L42: 0 | M42: 1570 | N42: 1273
B43: 36 | C43: 143415 | D43: 0 | E43: 0 | F43: 5000 | G43: 22000 | H43: 11900 | I43: 4220 | J43: 2960 | K43: 400 | L43: 0 | M43: 1570 | N43: 1310
B44: 37 | C44: 154470 | D44: 0 | E44: 0 | F44: 5000 | G44: 22000 | H44: 12850 | I44: 4220 | J44: 3280 | K44: 520 | L44: 0 | M44: 1570 | N44: 1310
B45: 38 | C45: 166165 | D45: 0 | E45: 0 | F45: 5000 | G45: 22000 | H45: 14391 | I45: 4220 | J45: 3322 | K45: 652 | L45: 0 | M45: 1570 | N45: 1310
B46: 39 | C46: 178520 | D46: 0 | E46: 0 | F46: 5000 | G46: 22000 | H46: 14770 | I46: 4220 | J46: 3410 | K46: 670 | L46: 0 | M46: 1570 | N46: 1310
B47: 40 | C47: 191555 | D47: 0 | E47: 0 | F47: =F37+5000 -> 10000 | G47: 22000 | H47: 14770 | I47: 7040 | J47: 3730 | K47: 820 | L47: 0 | M47: 1570 | N47: 1430
B48: 41 | C48: 205280 | D48: 0 | E48: 0 | F48: =F38+5000 -> 10000 | G48: 24000 | H48: 14770 | I48: 7040 | J48: 3768 | K48: 937 | L48: 0 | M48: 1570 | N48: 1430
B49: 42 | C49: 219715 | D49: 0 | E49: 0 | F49: 10000 | G49: 24000 | H49: 14770 | I49: 7040 | J49: 3860 | K49: 960 | L49: 0 | M49: 1570 | N49: 1430
B50: 43 | C50: 234880 | D50: 0 | E50: 0 | F50: 10000 | G50: 24000 | H50: 15600 | I50: 7040 | J50: 4180 | K50: 1050 | L50: 0 | M50: 1570 | N50: 2770
B51: 44 | C51: 250795 | D51: 0 | E51: 0 | F51: 10000 | G51: 24000 | H51: 15600 | I51: 7040 | J51: 4310 | K51: 1130 | L51: 0 | M51: 1570 | N51: 2770
B52: 45 | C52: 267470 | D52: 0 | E52: 0 | F52: 10000 | G52: 24000 | H52: 15600 | I52: 7040 | J52: 4630 | K52: 1220 | L52: 0 | M52: 1570 | N52: 2770
B53: 46 | C53: 284920 | D53: 0 | E53: 0 | F53: 10000 | G53: =G48+1000 -> 25000 | H53: 15600 | I53: 7040 | J53: 4760 | K53: 1310 | L53: 0 | M53: 1570 | N53: 2770
B54: 47 | C54: 303175 | D54: 0 | E54: 0 | F54: 10000 | G54: =G49+1000 -> 25000 | H54: 15600 | I54: 7040 | J54: 5080 | K54: 1400 | L54: 0 | M54: 1570 | N54: 2770
B55: 48 | C55: 322245 | D55: 0 | E55: 0 | F55: 10000 | G55: 25000 | H55: 15600 | I55: 7040 | J55: 5210 | K55: 1500 | L55: 0 | M55: 1570 | N55: 2770
B56: 49 | C56: 342145 | D56: 0 | E56: 0 | F56: 10000 | G56: 25000 | H56: 15600 | I56: 7040 | J56: 5350 | K56: 1600 | L56: 0 | M56: 1570 | N56: 2770
B57: 50 | C57: 362895 | D57: 0 | E57: 0 | F57: 15000 | G57: 25000 | H57: 16440 | I57: 7040 | J57: 5800 | K57: 1790 | L57: 0 | M57: 1570 | N57: 2770
B58: 51 | C58: 384510 | D58: 0 | E58: 0 | F58: 15000 | G58: 26000 | H58: 17270 | I58: 7040 | J58: 5800 | K58: 1880 | L58: 0 | M58: 1690 | N58: 2770
B59: 52 | C59: 407015 | D59: 0 | E59: 0 | F59: 15000 | G59: 26000 | H59: 17270 | I59: 7040 | J59: 5980 | K59: 2160 | L59: 0 | M59: 1690 | N59: 2770
B60: 53 | C60: 430420 | D60: 0 | E60: 0 | F60: 15000 | G60: 26000 | H60: 18100 | I60: 15240 | J60: 5980 | K60: 2300 | L60: 0 | M60: 1690 | N60: 2770
B61: 54 | C61: 454740 | D61: 0 | E61: 0 | F61: 15000 | G61: 26000 | H61: 18100 | I61: 15240 | J61: 6180 | K61: 2600 | L61: 0 | M61: 1690 | N61: 2770
B62: 55 | C62: 480000 | D62: 0 | E62: 0 | F62: 15000 | G62: 26000 | H62: 18930 | I62: 15240 | J62: 6440 | K62: 2910 | L62: 0 | M62: 1690 | N62: 3530
B63: 56 | C63: 506215 | D63: 0 | E63: 0 | F63: 15000 | G63: 27000 | H63: 18930 | I63: 15240 | J63: 6580 | K63: 3170 | L63: 0 | M63: 1690 | N63: 3530
B64: 57 | C64: 533400 | D64: 0 | E64: 0 | F64: 15000 | G64: 27000 | H64: 19670 | I64: 15240 | J64: 6710 | K64: 3740 | L64: 0 | M64: 1690 | N64: 3530
B65: 58 | C65: 561575 | D65: 0 | E65: 0 | F65: 15000 | G65: 27000 | H65: 19670 | I65: 15240 | J65: 6770 | K65: 3830 | L65: 0 | M65: 1690 | N65: 3530
B66: 59 | C66: 590755 | D66: 0 | E66: 0 | F66: 15000 | G66: 27000 | H66: 20400 | I66: 15240 | J66: 6840 | K66: 4110 | L66: 0 | M66: 1690 | N66: 3530
B67: 60 | C67: 620960 | D67: 0 | E67: 0 | F67: 20000 | G67: 27000 | H67: 20400 | I67: 15240 | J67: 6910 | K67: 4530 | L67: 0 | M67: 1690 | N67: 3530
B68: 61 | C68: 652205 | D68: 0 | E68: 0 | F68: 20000 | G68: 28000 | H68: 21140 | I68: 15240 | J68: 7040 | K68: 4940 | L68: 0 | M68: 1690 | N68: 3530
B69: 62 | C69: 684505 | D69: 0 | E69: 0 | F69: 20000 | G69: 28000 | H69: 21870 | I69: 15240 | J69: 7110 | K69: 5290 | L69: 0 | M69: 1690 | N69: 3530
B70: 63 | C70: 717885 | D70: 0 | E70: 0 | F70: 20000 | G70: 28000 | H70: 21870 | I70: 15240 | J70: 7170 | K70: 5500 | L70: 0 | M70: 1690 | N70: 3530
B71: 64 | C71: 752355 | D71: 0 | E71: 0 | F71: 20000 | G71: 28000 | H71: 22600 | I71: 15240 | J71: 7240 | K71: 5670 | L71: 0 | M71: 1690 | N71: 3530
B72: 65 | C72: 787935 | D72: 0 | E72: 0 | F72: 20000 | G72: 28000 | H72: 23590 | I72: 15240 | J72: 7630 | K72: 6040 | L72: 0 | M72: 2240 | N72: 4820
B73: 66 | C73: 824640 | D73: 0 | E73: 0 | F73: 20000 | G73: 29000 | H73: 23590 | I73: 15240 | J73: 8030 | K73: 6570 | L73: 0 | M73: 2240 | N73: 4820
B74: 67 | C74: 862495 | D74: 0 | E74: 0 | F74: 20000 | G74: 29000 | H74: 24580 | I74: 26910 | J74: 8320 | K74: 7040 | L74: 0 | M74: 2790 | N74: 4820
B75: 68 | C75: 901510 | D75: 0 | E75: 0 | F75: 20000 | G75: 29000 | H75: 25560 | I75: 26910 | J75: 8410 | K75: 7590 | L75: 0 | M75: 2790 | N75: 4820
B76: 69 | C76: 941700 | D76: 0 | E76: 0 | F76: 20000 | G76: 29000 | H76: 25560 | I76: 26910 | J76: 8610 | K76: 8380 | L76: 0 | M76: 2790 | N76: 4820
B77: 70 | C77: 983095 | D77: 0 | E77: 0 | F77: 25000 | G77: 29000 | H77: 26550 | I77: 26910 | J77: 8800 | K77: 9010 | L77: 0 | M77: 3340 | N77: 4820
B78: 71 | C78: 1025700 | D78: 0 | E78: 0 | F78: 25000 | G78: 30000 | H78: 26550 | I78: 26910 | J78: 8900 | K78: 10030 | L78: 0 | M78: 3340 | N78: 4820
B79: 72 | C79: 1069535 | D79: 0 | E79: 0 | F79: 25000 | G79: 30000 | H79: 27540 | I79: 26910 | J79: 9250 | K79: 10740 | L79: 0 | M79: 4140 | N79: 9380
B80: 73 | C80: 1114620 | D80: 0 | E80: 0 | F80: =F70+5000 -> 25000 | G80: 30000 | H80: 27540 | I80: 26910 | J80: 9370 | K80: 10810 | L80: 0 | M80: 4140 | N80: 9380
B81: 74 | C81: 1160970 | D81: 0 | E81: 0 | F81: 25000 | G81: 30000 | H81: 29190 | I81: 26910 | J81: 9460 | K81: 11140 | L81: 0 | M81: 4140 | N81: 9380
B82: 75 | C82: 1208605 | D82: 0 | E82: 0 | F82: 25000 | G82: 30000 | H82: 30850 | I82: 26910 | J82: 9520 | K82: 11290 | L82: 0 | M82: 4140 | N82: 9380
B83: 76 | C83: 1257545 | D83: 0 | E83: 0 | F83: 25000 | G83: =G78 -> 30000 | H83: 30850 | I83: 26910 | J83: 9550 | K83: 11340 | L83: 0 | M83: 4140 | N83: 9380
B84: 77 | C84: 1307795 | D84: 0 | E84: 0 | F84: 25000 | G84: =G79 -> 30000 | H84: 32500 | I84: 26910 | J84: 10390 | K84: 11580 | L84: 0 | M84: 4140 | N84: 9380
B85: 78 | C85: 1359385 | D85: 0 | E85: 0 | F85: 25000 | G85: 30000 | H85: 34160 | I85: 26910 | J85: 10780 | K85: 11690 | L85: 0 | M85: 4140 | N85: 9380
B86: 79 | C86: 1412330 | D86: 0 | E86: 0 | F86: 25000 | G86: 30000 | H86: 35820 | I86: 26910 | J86: 11070 | K86: 11790 | L86: 0 | M86: 4140 | N86: 9380
B87: 80 | C87: 1466640 | D87: 0 | E87: 0 | F87: 30000 | G87: 30000 | H87: 35820 | I87: 26910 | J87: 11360 | K87: 12430 | L87: 0 | M87: 4140 | N87: 9380
B88: 81 | C88: 1522340 | D88: 0 | E88: 0 | F88: 30000 | G88: 30000 | H88: 39900 | I88: 26910 | J88: 12140 | K88: 12590 | L88: 0 | M88: 7470 | N88: 13350
B89: 82 | C89: 1579450 | D89: 0 | E89: 0 | F89: 30000 | G89: 30000 | H89: 39900 | I89: 26910 | J89: 12820 | K89: 13290 | L89: 0 | M89: 7470 | N89: 13350
B90: 83 | C90: 1637975 | D90: 0 | E90: 0 | F90: 30000 | G90: 30000 | H90: 43980 | I90: 26910 | J90: 13110 | K90: 14090 | L90: 0 | M90: 8350 | N90: 13350
B91: 84 | C91: 1697945 | D91: 0 | E91: 0 | F91: 30000 | G91: 30000 | H91: 48070 | I91: 26910 | J91: 13400 | K91: 14680 | L91: 0 | M91: 8350 | N91: 13350
B92: 85 | C92: 1759365 | D92: 0 | E92: 0 | F92: 30000 | G92: 30000 | H92: 52150 | I92: 26910 | J92: 13840 | K92: 15190 | L92: 0 | M92: 8790 | N92: 13350
B93: 86 | C93: 1822265 | D93: 0 | E93: 0 | F93: 30000 | G93: 30000 | H93: 60810 | I93: 26910 | J93: 13960 | K93: 15680 | L93: 0 | M93: 9670 | N93: 13350
B94: 87 | C94: 1886655 | D94: 0 | E94: 0 | F94: 30000 | G94: 30000 | H94: 60000 | I94: 34000 | J94: 14080 | K94: 16580 | L94: 0 | M94: 9670 | N94: 13350
B95: 88 | C95: 1952555 | D95: 0 | E95: 0 | F95: 30000 | G95: 30000 | H95: 60000 | I95: 34000 | J95: 15000 | K95: 18000 | L95: 0 | M95: 10260 | N95: 7500
B96: 89 | C96: 2019980 | D96: 0 | E96: 0 | F96: 30000 | G96: 30000 | H96: 60000 | I96: 34000 | J96: 15660 | K96: 18630 | L96: 0 | M96: 10260 | N96: 7500
B97: 90 | C97: 2088950 | D97: 0 | E97: 0 | F97: 35000 | G97: 30000 | H97: 60000 | I97: 34000 | J97: 15960 | K97: 20250 | L97: 0 | M97: 10480 | N97: 7500
B98: 91 | C98: 2159480 | D98: 0 | E98: 0 | F98: 35000 | G98: 30000 | H98: 60000 | I98: 34000 | J98: 17310 | K98: 20780 | L98: 0 | M98: 10480 | N98: 7500
B99: 92 | C99: 2231590 | D99: 0 | E99: 0 | F99: 35000 | G99: 30000 | H99: 60000 | I99: 34000 | J99: 17800 | K99: 24140 | L99: 0 | M99: 10480 | N99: 7500
B100: 93 | C100: 2305295 | D100: 0 | E100: 0 | F100: 35000 | G100: 30000 | H100: 60000 | I100: 34000 | J100: 18710 | K100: 33440 | L100: 0 | M100: 11610 | N100: 7500
B101: 94 | C101: 2380610 | D101: 0 | E101: 0 | F101: 35000 | G101: 30000 | H101: 60000 | I101: 34000 | J101: 19320 | K101: 35480 | L101: 0 | M101: 11610 | N101: 7500
B102: 95 | C102: 2457560 | D102: 0 | E102: 0 | F102: 35000 | G102: 30000 | H102: 60000 | I102: 34000 | J102: 19740 | K102: 37350 | L102: 0 | M102: 13210 | N102: 7500
B103: 96 | C103: 2536155 | D103: 0 | E103: 0 | F103: 35000 | G103: 30000 | H103: 60000 | I103: 34000 | J103: 20050 | K103: 38460 | L103: 0 | M103: 13370 | N103: 7500
B104: 97 | C104: 2616415 | D104: 0 | E104: 0 | F104: 35000 | G104: 30000 | H104: 60000 | I104: 34000 | J104: 20650 | K104: 39220 | L104: 0 | M104: 14500 | N104: 7500
B105: 98 | C105: 2698360 | D105: 0 | E105: 0 | F105: 35000 | G105: 30000 | H105: 60000 | I105: 34000 | J105: 20980 | K105: 39660 | L105: 0 | M105: 14500 | N105: 7500
B106: 99 | C106: 2782005 | D106: 0 | E106: 0 | F106: 35000 | G106: 30000 | H106: 60000 | I106: 34000 | J106: 20980 | K106: 40000 | L106: 0 | M106: 14500 | N106: 7500
B107: 100 | C107: 2867365 | D107: 0 | E107: 0 | F107: 40000 | G107: 30000 | H107: 60000 | I107: 34000 | J107: 20980 | K107: 40000 | L107: 0 | M107: 14500 | N107: 7500
B108: 101 | C108: 2954460 | D108: 0 | E108: 0 | F108: 40000 | G108: 30000 | H108: 60000 | I108: 34000 | J108: 20980 | K108: 40000 | L108: 0 | M108: 14500 | N108: 7500
B109: 102 | C109: 3043305 | D109: 0 | E109: 0 | F109: 40000 | G109: 30000 | H109: 60000 | I109: 34000 | J109: 20980 | K109: 40000 | L109: 0 | M109: 14500 | N109: 7500
B110: 103 | C110: 3133920 | D110: 0 | E110: 0 | F110: 40000 | G110: 30000 | H110: 60000 | I110: 34000 | J110: 20980 | K110: 40000 | L110: 0 | M110: 14500 | N110: 7500
B111: 104 | C111: 3226320 | D111: 0 | E111: 0 | F111: 40000 | G111: 30000 | H111: 60000 | I111: 34000 | J111: 20980 | K111: 40000 | L111: 0 | M111: 14500 | N111: 7500
B112: 105 | C112: 3320530 | D112: 0 | E112: 0 | F112: =F102+5000 -> 40000 | G112: 30000 | H112: 60000 | I112: 34000 | J112: 20980 | K112: 40000 | L112: 0 | M112: 14500 | N112: 7500
B113: 106 | C113: 3416555 | D113: 0 | E113: 0 | F113: =F103+5000 -> 40000 | G113: 30000 | H113: 60000 | I113: 34000 | J113: 20980 | K113: 40000 | L113: 0 | M113: 14500 | N113: 7500
B114: 107 | C114: 3514420 | D114: 0 | E114: 0 | F114: =F104+5000 -> 40000 | G114: 30000 | H114: 60000 | I114: 34000 | J114: 20980 | K114: 40000 | L114: 0 | M114: 14500 | N114: 7500
B115: 108 | C115: 3614145 | D115: 0 | E115: 0 | F115: =F105+5000 -> 40000 | G115: 30000 | H115: 60000 | I115: 34000 | J115: 20980 | K115: 40000 | L115: 0 | M115: 14500 | N115: 7500
B116: 109 | C116: 3715740 | D116: 0 | E116: 0 | F116: =F106+5000 -> 40000 | G116: =G111 -> 30000 | H116: 60000 | I116: 34000 | J116: 20980 | K116: 40000 | L116: 0 | M116: 14500 | N116: 7500
B117: 110 | C117: 3819225 | D117: 0 | E117: 0 | F117: =F107 -> 40000 | G117: 30000 | H117: 60000 | I117: 34000 | J117: 20980 | K117: 40000 | L117: 0 | M117: 14500 | N117: 7500
B118: 111 | C118: 3924620 | D118: 0 | E118: 0 | F118: =F108 -> 40000 | G118: 30000 | H118: 60000 | I118: 34000 | J118: 20980 | K118: 40000 | L118: 0 | M118: 14500 | N118: 7500
B119: 112 | C119: 4031935 | D119: 0 | E119: 0 | F119: 40000 | G119: 30000 | H119: 60000 | I119: 34000 | J119: 20980 | K119: 40000 | L119: 0 | M119: 14500 | N119: 7500
B120: 113 | C120: 4141200 | D120: 0 | E120: 0 | F120: 40000 | G120: 30000 | H120: 60000 | I120: 34000 | J120: 20980 | K120: 40000 | L120: 0 | M120: 14500 | N120: 7500
B121: 114 | C121: 4252420 | D121: 0 | E121: 0 | F121: 40000 | G121: 30000 | H121: 60000 | I121: 34000 | J121: 20980 | K121: 40000 | L121: 0 | M121: 14500 | N121: 7500
B122: 115 | C122: 4365620 | D122: 0 | E122: 0 | F122: 40000 | G122: 30000 | H122: 60000 | I122: 34000 | J122: 20980 | K122: 40000 | L122: 0 | M122: 14500 | N122: 7500
B123: 116 | C123: 4480815 | D123: 0 | E123: 0 | F123: 40000 | G123: 30000 | H123: 60000 | I123: 34000 | J123: 20980 | K123: 40000 | L123: 0 | M123: 14500 | N123: 7500
B124: 117 | C124: 4598020 | D124: 0 | E124: 0 | F124: 40000 | G124: 30000 | H124: 60000 | I124: 34000 | J124: 20980 | K124: 40000 | L124: 0 | M124: 14500 | N124: 7500
B125: 118 | C125: 4717255 | D125: 0 | E125: 0 | F125: 40000 | G125: 30000 | H125: 60000 | I125: 34000 | J125: 20980 | K125: 40000 | L125: 0 | M125: 14500 | N125: 7500
B126: 119 | C126: 4838535 | D126: 0 | E126: 0 | F126: 40000 | G126: 30000 | H126: 60000 | I126: 34000 | J126: 20980 | K126: 40000 | L126: 0 | M126: 14500 | N126: 7500
B127: 120 | C127: 4961880 | D127: 0 | E127: 0 | F127: 40000 | G127: 30000 | H127: 60000 | I127: 34000 | J127: 20980 | K127: 40000 | L127: 0 | M127: 14500 | N127: 7500
B128: 121 | C128: 5087310 | D128: 0 | E128: 0 | F128: 40000 | G128: 30000 | H128: 60000 | I128: 34000 | J128: 20980 | K128: 40000 | L128: 0 | M128: 14500 | N128: 7500
B129: 122 | C129: 5214835 | D129: 0 | E129: 0 | F129: 40000 | G129: 30000 | H129: 60000 | I129: 34000 | J129: 20980 | K129: 40000 | L129: 0 | M129: 14500 | N129: 7500
B130: 123 | C130: 5344475 | D130: 0 | E130: 0 | F130: 40000 | G130: 30000 | H130: 60000 | I130: 34000 | J130: 20980 | K130: 40000 | L130: 0 | M130: 14500 | N130: 7500
B131: 124 | C131: 5476250 | D131: 0 | E131: 0 | F131: 40000 | G131: 30000 | H131: 60000 | I131: 34000 | J131: 20980 | K131: 40000 | L131: 0 | M131: 14500 | N131: 7500
B132: 125 | C132: 5610175 | D132: 0 | E132: 0 | F132: 40000 | G132: 30000 | H132: 60000 | I132: 34000 | J132: 20980 | K132: 40000 | L132: 0 | M132: 14500 | N132: 7500
B133: 126 | C133: 5746270 | D133: 0 | E133: 0 | F133: 40000 | G133: 30000 | H133: 60000 | I133: 34000 | J133: 20980 | K133: 40000 | L133: 0 | M133: 14500 | N133: 7500
B134: 127 | C134: 5884550 | D134: 0 | E134: 0 | F134: 40000 | G134: 30000 | H134: 60000 | I134: 34000 | J134: 20980 | K134: 40000 | L134: 0 | M134: 14500 | N134: 7500
B135: 128 | C135: 6025035 | D135: 0 | E135: 0 | F135: 40000 | G135: 30000 | H135: 60000 | I135: 34000 | J135: 20980 | K135: 40000 | L135: 0 | M135: 14500 | N135: 7500
B136: 129 | C136: 6167735 | D136: 0 | E136: 0 | F136: 40000 | G136: 30000 | H136: 60000 | I136: 34000 | J136: 20980 | K136: 40000 | L136: 0 | M136: 14500 | N136: 7500
B137: 130 | C137: 6312675 | D137: 0 | E137: 0 | F137: 40000 | G137: 30000 | H137: 60000 | I137: 34000 | J137: 20980 | K137: 40000 | L137: 0 | M137: 14500 | N137: 7500
B138: 131 | C138: 6459870 | D138: 0 | E138: 0 | F138: 40000 | G138: 30000 | H138: 60000 | I138: 34000 | J138: 20980 | K138: 40000 | L138: 0 | M138: 14500 | N138: 7500
B139: 132 | C139: 6609340 | D139: 0 | E139: 0 | F139: 40000 | G139: 30000 | H139: 60000 | I139: 34000 | J139: 20980 | K139: 40000 | L139: 0 | M139: 14500 | N139: 7500
B140: 133 | C140: 6761095 | D140: 0 | E140: 0 | F140: 40000 | G140: 30000 | H140: 60000 | I140: 34000 | J140: 20980 | K140: 40000 | L140: 0 | M140: 14500 | N140: 7500
B141: 134 | C141: 6915160 | D141: 0 | E141: 0 | F141: 40000 | G141: 30000 | H141: 60000 | I141: 34000 | J141: 20980 | K141: 40000 | L141: 0 | M141: 14500 | N141: 7500
B142: 135 | C142: 7071545 | D142: 0 | E142: 0 | F142: 40000 | G142: 30000 | H142: 60000 | I142: 34000 | J142: 20980 | K142: 40000 | L142: 0 | M142: 14500 | N142: 7500
B143: 136 | C143: 7230275 | D143: 0 | E143: 0 | F143: 40000 | G143: 30000 | H143: 60000 | I143: 34000 | J143: 20980 | K143: 40000 | L143: 0 | M143: 14500 | N143: 7500
B144: 137 | C144: 7391365 | D144: 0 | E144: 0 | F144: 40000 | G144: 30000 | H144: 60000 | I144: 34000 | J144: 20980 | K144: 40000 | L144: 0 | M144: 14500 | N144: 7500
B145: 138 | C145: 7554830 | D145: 0 | E145: 0 | F145: 40000 | G145: 30000 | H145: 60000 | I145: 34000 | J145: 20980 | K145: 40000 | L145: 0 | M145: 14500 | N145: 7500
B146: 139 | C146: 7720685 | D146: 0 | E146: 0 | F146: 40000 | G146: 30000 | H146: 60000 | I146: 34000 | J146: 20980 | K146: 40000 | L146: 0 | M146: 14500 | N146: 7500
B147: 140 | C147: 7888955 | D147: 0 | E147: 0 | F147: 40000 | G147: 30000 | H147: 60000 | I147: 34000 | J147: 20980 | K147: 40000 | L147: 0 | M147: 14500 | N147: 7500
B148: 141 | C148: 8059655 | D148: 0 | E148: 0 | F148: 40000 | G148: =G143 -> 30000 | H148: 60000 | I148: 34000 | J148: 20980 | K148: 40000 | L148: 0 | M148: 14500 | N148: 7500
B149: 142 | C149: 8232795 | D149: 0 | E149: 0 | F149: 40000 | G149: 30000 | H149: 60000 | I149: 34000 | J149: 20980 | K149: 40000 | L149: 0 | M149: 14500 | N149: 7500
B150: 143 | C150: 8408400 | D150: 0 | E150: 0 | F150: =F140 -> 40000 | G150: 30000 | H150: 60000 | I150: 34000 | J150: 20980 | K150: 40000 | L150: 0 | M150: 14500 | N150: 7500
B151: 144 | C151: 8586490 | D151: 0 | E151: 0 | F151: 40000 | G151: 30000 | H151: 60000 | I151: 34000 | J151: 20980 | K151: 40000 | L151: 0 | M151: 14500 | N151: 7500
B152: 145 | C152: 8767070 | D152: 0 | E152: 0 | F152: 40000 | G152: 30000 | H152: 60000 | I152: 34000 | J152: 20980 | K152: 40000 | L152: 0 | M152: 14500 | N152: 7500
B153: 146 | C153: 8950170 | D153: 0 | E153: 0 | F153: 40000 | G153: 30000 | H153: 60000 | I153: 34000 | J153: 20980 | K153: 40000 | L153: 0 | M153: 14500 | N153: 7500
B154: 147 | C154: 9135800 | D154: 0 | E154: 0 | F154: 40000 | G154: 30000 | H154: 60000 | I154: 34000 | J154: 20980 | K154: 40000 | L154: 0 | M154: 14500 | N154: 7500
B155: 148 | C155: 9323985 | D155: 0 | E155: 0 | F155: 40000 | G155: 30000 | H155: 60000 | I155: 34000 | J155: 20980 | K155: 40000 | L155: 0 | M155: 14500 | N155: 7500
B156: 149 | C156: 9514730 | D156: 0 | E156: 0 | F156: 40000 | G156: 30000 | H156: 60000 | I156: 34000 | J156: 20980 | K156: 40000 | L156: 0 | M156: 14500 | N156: 7500
B157: 150 | C157: 9708065 | D157: 0 | E157: 0 | F157: 40000 | G157: 30000 | H157: 60000 | I157: 34000 | J157: 20980 | K157: 40000 | L157: 0 | M157: 14500 | N157: 7500
B158: 151 | C158: 9904000 | D158: 0 | E158: 0 | F158: 40000 | G158: 30000 | H158: 60000 | I158: 34000 | J158: 20980 | K158: 40000 | L158: 0 | M158: 14500 | N158: 7500
B159: 152 | C159: 10102550 | D159: 0 | E159: 0 | F159: 40000 | G159: 30000 | H159: 60000 | I159: 34000 | J159: 20980 | K159: 40000 | L159: 0 | M159: 14500 | N159: 7500
B160: 153 | C160: 10303740 | D160: 0 | E160: 0 | F160: 40000 | G160: 30000 | H160: 60000 | I160: 34000 | J160: 20980 | K160: 40000 | L160: 0 | M160: 14500 | N160: 7500
B161: 154 | C161: 10507585 | D161: 0 | E161: 0 | F161: 40000 | G161: 30000 | H161: 60000 | I161: 34000 | J161: 20980 | K161: 40000 | L161: 0 | M161: 14500 | N161: 7500
B162: 155 | C162: 10714100 | D162: 0 | E162: 0 | F162: 40000 | G162: 30000 | H162: 60000 | I162: 34000 | J162: 20980 | K162: 40000 | L162: 0 | M162: 14500 | N162: 7500
B163: 156 | C163: 10923300 | D163: 0 | E163: 0 | F163: 40000 | G163: 30000 | H163: 60000 | I163: 34000 | J163: 20980 | K163: 40000 | L163: 0 | M163: 14500 | N163: 7500
B164: 157 | C164: 11135210 | D164: 0 | E164: 0 | F164: 40000 | G164: 30000 | H164: 60000 | I164: 34000 | J164: 20980 | K164: 40000 | L164: 0 | M164: 14500 | N164: 7500
B165: 158 | C165: 11349845 | D165: 0 | E165: 0 | F165: 40000 | G165: 30000 | H165: 60000 | I165: 34000 | J165: 20980 | K165: 40000 | L165: 0 | M165: 14500 | N165: 7500
B166: 159 | C166: 11567215 | D166: 0 | E166: 0 | F166: 40000 | G166: 30000 | H166: 60000 | I166: 34000 | J166: 20980 | K166: 40000 | L166: 0 | M166: 14500 | N166: 7500
B167: 160 | C167: 11787345 | D167: 0 | E167: 0 | F167: 40000 | G167: 30000 | H167: 60000 | I167: 34000 | J167: 20980 | K167: 40000 | L167: 0 | M167: 14500 | N167: 7500
B168: 161 | C168: 12010250 | D168: 0 | E168: 0 | F168: 40000 | G168: 30000 | H168: 60000 | I168: 34000 | J168: 20980 | K168: 40000 | L168: 0 | M168: 14500 | N168: 7500
B169: 162 | C169: 12235950 | D169: 0 | E169: 0 | F169: 40000 | G169: 30000 | H169: 60000 | I169: 34000 | J169: 20980 | K169: 40000 | L169: 0 | M169: 14500 | N169: 7500
B170: 163 | C170: 12464460 | D170: 0 | E170: 0 | F170: 40000 | G170: 30000 | H170: 60000 | I170: 34000 | J170: 20980 | K170: 40000 | L170: 0 | M170: 14500 | N170: 7500
B171: 164 | C171: 12695795 | D171: 0 | E171: 0 | F171: 40000 | G171: 30000 | H171: 60000 | I171: 34000 | J171: 20980 | K171: 40000 | L171: 0 | M171: 14500 | N171: 7500
B172: 165 | C172: 12929975 | D172: 0 | E172: 0 | F172: 40000 | G172: 30000 | H172: 60000 | I172: 34000 | J172: 20980 | K172: 40000 | L172: 0 | M172: 14500 | N172: 7500
B173: 166 | C173: 13167015 | D173: 0 | E173: 0 | F173: 40000 | G173: 30000 | H173: 60000 | I173: 34000 | J173: 20980 | K173: 40000 | L173: 0 | M173: 14500 | N173: 7500
B174: 167 | C174: 13406935 | D174: 0 | E174: 0 | F174: 40000 | G174: 30000 | H174: 60000 | I174: 34000 | J174: 20980 | K174: 40000 | L174: 0 | M174: 14500 | N174: 7500
B175: 168 | C175: 13649755 | D175: 0 | E175: 0 | F175: 40000 | G175: 30000 | H175: 60000 | I175: 34000 | J175: 20980 | K175: 40000 | L175: 0 | M175: 14500 | N175: 7500
B176: 169 | C176: 13895485 | D176: 0 | E176: 0 | F176: 40000 | G176: 30000 | H176: 60000 | I176: 34000 | J176: 20980 | K176: 40000 | L176: 0 | M176: 14500 | N176: 7500
B177: 170 | C177: 14144145 | D177: 0 | E177: 0 | F177: 40000 | G177: 30000 | H177: 60000 | I177: 34000 | J177: 20980 | K177: 40000 | L177: 0 | M177: 14500 | N177: 7500
B178: 171 | C178: 14395760 | D178: 0 | E178: 0 | F178: 40000 | G178: 30000 | H178: 60000 | I178: 34000 | J178: 20980 | K178: 40000 | L178: 0 | M178: 14500 | N178: 7500
B179: 172 | C179: 14650335 | D179: 0 | E179: 0 | F179: 40000 | G179: 30000 | H179: 60000 | I179: 34000 | J179: 20980 | K179: 40000 | L179: 0 | M179: 14500 | N179: 7500
B180: 173 | C180: 14907895 | D180: 0 | E180: 0 | F180: 40000 | G180: 30000 | H180: 60000 | I180: 34000 | J180: 20980 | K180: 40000 | L180: 0 | M180: 14500 | N180: 7500
B181: 174 | C181: 15168460 | D181: 0 | E181: 0 | F181: 40000 | G181: 30000 | H181: 60000 | I181: 34000 | J181: 20980 | K181: 40000 | L181: 0 | M181: 14500 | N181: 7500
B182: 175 | C182: 15432040 | D182: 0 | E182: 0 | F182: 40000 | G182: 30000 | H182: 60000 | I182: 34000 | J182: 20980 | K182: 40000 | L182: 0 | M182: 14500 | N182: 7500
B183: 176 | C183: 15698655 | D183: 0 | E183: 0 | F183: 40000 | G183: 30000 | H183: 60000 | I183: 34000 | J183: 20980 | K183: 40000 | L183: 0 | M183: 14500 | N183: 7500
B184: 177 | C184: 15968320 | D184: 0 | E184: 0 | F184: 40000 | G184: 30000 | H184: 60000 | I184: 34000 | J184: 20980 | K184: 40000 | L184: 0 | M184: 14500 | N184: 7500
B185: 178 | C185: 16241060 | D185: 0 | E185: 0 | F185: 40000 | G185: 30000 | H185: 60000 | I185: 34000 | J185: 20980 | K185: 40000 | L185: 0 | M185: 14500 | N185: 7500
B186: 179 | C186: 16516885 | D186: 0 | E186: 0 | F186: 40000 | G186: 30000 | H186: 60000 | I186: 34000 | J186: 20980 | K186: 40000 | L186: 0 | M186: 14500 | N186: 7500
B187: 180 | C187: 16795810 | D187: 0 | E187: 0 | F187: 40000 | G187: 30000 | H187: 60000 | I187: 34000 | J187: 20980 | K187: 40000 | L187: 0 | M187: 14500 | N187: 7500
B188: 181 | C188: 17077865 | D188: 0 | E188: 0 | F188: 40000 | G188: 30000 | H188: 60000 | I188: 34000 | J188: 20980 | K188: 40000 | L188: 0 | M188: 14500 | N188: 7500
B189: 182 | C189: 17363055 | D189: 0 | E189: 0 | F189: 40000 | G189: 30000 | H189: 60000 | I189: 34000 | J189: 20980 | K189: 40000 | L189: 0 | M189: 14500 | N189: 7500
B190: 183 | C190: 17651405 | D190: 0 | E190: 0 | F190: 40000 | G190: 30000 | H190: 60000 | I190: 34000 | J190: 20980 | K190: 40000 | L190: 0 | M190: 14500 | N190: 7500
B191: 184 | C191: 17942925 | D191: 0 | E191: 0 | F191: 40000 | G191: 30000 | H191: 60000 | I191: 34000 | J191: 20980 | K191: 40000 | L191: 0 | M191: 14500 | N191: 7500
B192: 185 | C192: 18237640 | D192: 0 | E192: 0 | F192: 40000 | G192: 30000 | H192: 60000 | I192: 34000 | J192: 20980 | K192: 40000 | L192: 0 | M192: 14500 | N192: 7500
B193: 186 | C193: 18535560 | D193: 0 | E193: 0 | F193: 40000 | G193: 30000 | H193: 60000 | I193: 34000 | J193: 20980 | K193: 40000 | L193: 0 | M193: 14500 | N193: 7500
B194: 187 | C194: 18836710 | D194: 0 | E194: 0 | F194: 40000 | G194: 30000 | H194: 60000 | I194: 34000 | J194: 20980 | K194: 40000 | L194: 0 | M194: 14500 | N194: 7500
B195: 188 | C195: 19141100 | D195: 0 | E195: 0 | F195: 40000 | G195: 30000 | H195: 60000 | I195: 34000 | J195: 20980 | K195: 40000 | L195: 0 | M195: 14500 | N195: 7500
B196: 189 | C196: 19448755 | D196: 0 | E196: 0 | F196: 40000 | G196: 30000 | H196: 60000 | I196: 34000 | J196: 20980 | K196: 40000 | L196: 0 | M196: 14500 | N196: 7500
B197: 190 | C197: 19759685 | D197: 0 | E197: 0 | F197: 40000 | G197: 30000 | H197: 60000 | I197: 34000 | J197: 20980 | K197: 40000 | L197: 0 | M197: 14500 | N197: 7500
B198: 191 | C198: 20073915 | D198: 0 | E198: 0 | F198: 40000 | G198: 30000 | H198: 60000 | I198: 34000 | J198: 20980 | K198: 40000 | L198: 0 | M198: 14500 | N198: 7500
B199: 192 | C199: 20391450 | D199: 0 | E199: 0 | F199: 40000 | G199: 30000 | H199: 60000 | I199: 34000 | J199: 20980 | K199: 40000 | L199: 0 | M199: 14500 | N199: 7500
B200: 193 | C200: 20712320 | D200: 0 | E200: 0 | F200: 40000 | G200: 30000 | H200: 60000 | I200: 34000 | J200: 20980 | K200: 40000 | L200: 0 | M200: 14500 | N200: 7500
... 7 more rows

Sheet Sheet1
A1: 14 | B1: 500 | D1: 3 | E1: 12 | G1: =[2]!SUMSTRING(A1:B1,"#") ->  | J1: =[2]!SUMSTRING(D1:E1,"#") ->  | L1: =[2]!SUMSTRING(G1:J1,"|") -> 
A2: 14 | B2: 600 | D2: 3 | E2: 14 | G2: =[2]!SUMSTRING(A2:B2,"#") ->  | J2: =[2]!SUMSTRING(D2:E2,"#") ->  | L2: =[2]!SUMSTRING(G2:J2,"|") -> 
A3: 14 | B3: 700 | D3: 3 | E3: 16 | G3: =[2]!SUMSTRING(A3:B3,"#") ->  | J3: =[2]!SUMSTRING(D3:E3,"#") ->  | L3: =[2]!SUMSTRING(G3:J3,"|") -> 
A4: 14 | B4: 800 | D4: 3 | E4: 18 | G4: =[2]!SUMSTRING(A4:B4,"#") ->  | J4: =[2]!SUMSTRING(D4:E4,"#") ->  | L4: =[2]!SUMSTRING(G4:J4,"|") -> 
A5: 14 | B5: 900 | D5: 3 | E5: 20 | G5: =[2]!SUMSTRING(A5:B5,"#") ->  | J5: =[2]!SUMSTRING(D5:E5,"#") ->  | L5: =[2]!SUMSTRING(G5:J5,"|") -> 
A6: 14 | B6: 1000 | D6: 3 | E6: 22 | G6: =[2]!SUMSTRING(A6:B6,"#") ->  | J6: =[2]!SUMSTRING(D6:E6,"#") ->  | L6: =[2]!SUMSTRING(G6:J6,"|") -> 
A7: 14 | B7: 1100 | D7: 3 | E7: 24 | G7: =[2]!SUMSTRING(A7:B7,"#") ->  | J7: =[2]!SUMSTRING(D7:E7,"#") ->  | L7: =[2]!SUMSTRING(G7:J7,"|") -> 
A8: 14 | B8: 1200 | D8: 3 | E8: 26 | G8: =[2]!SUMSTRING(A8:B8,"#") ->  | J8: =[2]!SUMSTRING(D8:E8,"#") ->  | L8: =[2]!SUMSTRING(G8:J8,"|") -> 
A9: 14 | B9: 1300 | D9: 3 | E9: 28 | G9: =[2]!SUMSTRING(A9:B9,"#") ->  | J9: =[2]!SUMSTRING(D9:E9,"#") ->  | L9: =[2]!SUMSTRING(G9:J9,"|") -> 
A10: 14 | B10: 1400 | D10: 3 | E10: 30 | G10: =[2]!SUMSTRING(A10:B10,"#") ->  | J10: =[2]!SUMSTRING(D10:E10,"#") ->  | L10: =[2]!SUMSTRING(G10:J10,"|") -> 
A11: 14 | B11: 1500 | D11: 3 | E11: 32 | G11: =[2]!SUMSTRING(A11:B11,"#") ->  | J11: =[2]!SUMSTRING(D11:E11,"#") ->  | L11: =[2]!SUMSTRING(G11:J11,"|") -> 
A12: 14 | B12: 1600 | D12: 3 | E12: 34 | G12: =[2]!SUMSTRING(A12:B12,"#") ->  | J12: =[2]!SUMSTRING(D12:E12,"#") ->  | L12: =[2]!SUMSTRING(G12:J12,"|") -> 
A13: 14 | B13: 1700 | D13: 3 | E13: 36 | G13: =[2]!SUMSTRING(A13:B13,"#") ->  | J13: =[2]!SUMSTRING(D13:E13,"#") ->  | L13: =[2]!SUMSTRING(G13:J13,"|") -> 
A14: 14 | B14: 1800 | D14: 3 | E14: 38 | G14: =[2]!SUMSTRING(A14:B14,"#") ->  | J14: =[2]!SUMSTRING(D14:E14,"#") ->  | L14: =[2]!SUMSTRING(G14:J14,"|") -> 
A15: 14 | B15: 1900 | D15: 3 | E15: 40 | G15: =[2]!SUMSTRING(A15:B15,"#") ->  | J15: =[2]!SUMSTRING(D15:E15,"#") ->  | L15: =[2]!SUMSTRING(G15:J15,"|") -> 
A16: 14 | B16: 2000 | D16: 3 | E16: 42 | G16: =[2]!SUMSTRING(A16:B16,"#") ->  | J16: =[2]!SUMSTRING(D16:E16,"#") ->  | L16: =[2]!SUMSTRING(G16:J16,"|") -> 
A17: 14 | B17: 2100 | D17: 3 | E17: 44 | G17: =[2]!SUMSTRING(A17:B17,"#") ->  | J17: =[2]!SUMSTRING(D17:E17,"#") ->  | L17: =[2]!SUMSTRING(G17:J17,"|") -> 
A18: 14 | B18: 2200 | D18: 3 | E18: 46 | G18: =[2]!SUMSTRING(A18:B18,"#") ->  | J18: =[2]!SUMSTRING(D18:E18,"#") ->  | L18: =[2]!SUMSTRING(G18:J18,"|") -> 
A19: 14 | B19: 2300 | D19: 3 | E19: 48 | G19: =[2]!SUMSTRING(A19:B19,"#") ->  | J19: =[2]!SUMSTRING(D19:E19,"#") ->  | L19: =[2]!SUMSTRING(G19:J19,"|") -> 
A20: 14 | B20: 2400 | D20: 3 | E20: 50 | G20: =[2]!SUMSTRING(A20:B20,"#") ->  | J20: =[2]!SUMSTRING(D20:E20,"#") ->  | L20: =[2]!SUMSTRING(G20:J20,"|") -> 
A21: 14 | B21: 2500 | D21: 3 | E21: 52 | G21: =[2]!SUMSTRING(A21:B21,"#") ->  | J21: =[2]!SUMSTRING(D21:E21,"#") ->  | L21: =[2]!SUMSTRING(G21:J21,"|") -> 
A22: 14 | B22: 2600 | D22: 3 | E22: 54 | G22: =[2]!SUMSTRING(A22:B22,"#") ->  | J22: =[2]!SUMSTRING(D22:E22,"#") ->  | L22: =[2]!SUMSTRING(G22:J22,"|") -> 
A23: 14 | B23: 2700 | D23: 3 | E23: 56 | G23: =[2]!SUMSTRING(A23:B23,"#") ->  | J23: =[2]!SUMSTRING(D23:E23,"#") ->  | L23: =[2]!SUMSTRING(G23:J23,"|") -> 
A24: 14 | B24: 2800 | D24: 3 | E24: 58 | G24: =[2]!SUMSTRING(A24:B24,"#") ->  | J24: =[2]!SUMSTRING(D24:E24,"#") ->  | L24: =[2]!SUMSTRING(G24:J24,"|") -> 
A25: 14 | B25: 2900 | D25: 3 | E25: 60 | G25: =[2]!SUMSTRING(A25:B25,"#") ->  | J25: =[2]!SUMSTRING(D25:E25,"#") ->  | L25: =[2]!SUMSTRING(G25:J25,"|") -> 
A26: 14 | B26: 3000 | D26: 3 | E26: 62 | G26: =[2]!SUMSTRING(A26:B26,"#") ->  | J26: =[2]!SUMSTRING(D26:E26,"#") ->  | L26: =[2]!SUMSTRING(G26:J26,"|") -> 
A27: 14 | B27: 3100 | D27: 3 | E27: 64 | G27: =[2]!SUMSTRING(A27:B27,"#") ->  | J27: =[2]!SUMSTRING(D27:E27,"#") ->  | L27: =[2]!SUMSTRING(G27:J27,"|") -> 
A28: 14 | B28: 3200 | D28: 3 | E28: 66 | G28: =[2]!SUMSTRING(A28:B28,"#") ->  | J28: =[2]!SUMSTRING(D28:E28,"#") ->  | L28: =[2]!SUMSTRING(G28:J28,"|") -> 
A29: 14 | B29: 3300 | D29: 3 | E29: 68 | G29: =[2]!SUMSTRING(A29:B29,"#") ->  | J29: =[2]!SUMSTRING(D29:E29,"#") ->  | L29: =[2]!SUMSTRING(G29:J29,"|") -> 
A30: 14 | B30: 3500 | D30: 3 | E30: 70 | G30: =[2]!SUMSTRING(A30:B30,"#") ->  | J30: =[2]!SUMSTRING(D30:E30,"#") ->  | L30: =[2]!SUMSTRING(G30:J30,"|") -> 
A31: 14 | B31: 3700 | D31: 3 | E31: 72 | G31: =[2]!SUMSTRING(A31:B31,"#") ->  | J31: =[2]!SUMSTRING(D31:E31,"#") ->  | L31: =[2]!SUMSTRING(G31:J31,"|") -> 
A32: 14 | B32: 3900 | D32: 3 | E32: 74 | G32: =[2]!SUMSTRING(A32:B32,"#") ->  | J32: =[2]!SUMSTRING(D32:E32,"#") ->  | L32: =[2]!SUMSTRING(G32:J32,"|") -> 
A33: 14 | B33: 4100 | D33: 3 | E33: 76 | G33: =[2]!SUMSTRING(A33:B33,"#") ->  | J33: =[2]!SUMSTRING(D33:E33,"#") ->  | L33: =[2]!SUMSTRING(G33:J33,"|") -> 
A34: 14 | B34: 4300 | D34: 3 | E34: 78 | G34: =[2]!SUMSTRING(A34:B34,"#") ->  | J34: =[2]!SUMSTRING(D34:E34,"#") ->  | L34: =[2]!SUMSTRING(G34:J34,"|") -> 
A35: 14 | B35: 4500 | D35: 3 | E35: 80 | G35: =[2]!SUMSTRING(A35:B35,"#") ->  | J35: =[2]!SUMSTRING(D35:E35,"#") ->  | L35: =[2]!SUMSTRING(G35:J35,"|") -> 
A36: 14 | B36: 4700 | D36: 3 | E36: 82 | G36: =[2]!SUMSTRING(A36:B36,"#") ->  | J36: =[2]!SUMSTRING(D36:E36,"#") ->  | L36: =[2]!SUMSTRING(G36:J36,"|") -> 
A37: 14 | B37: 4900 | D37: 3 | E37: 84 | G37: =[2]!SUMSTRING(A37:B37,"#") ->  | J37: =[2]!SUMSTRING(D37:E37,"#") ->  | L37: =[2]!SUMSTRING(G37:J37,"|") -> 
A38: 14 | B38: 5100 | D38: 3 | E38: 86 | G38: =[2]!SUMSTRING(A38:B38,"#") ->  | J38: =[2]!SUMSTRING(D38:E38,"#") ->  | L38: =[2]!SUMSTRING(G38:J38,"|") -> 
A39: 14 | B39: 5300 | D39: 3 | E39: 88 | G39: =[2]!SUMSTRING(A39:B39,"#") ->  | J39: =[2]!SUMSTRING(D39:E39,"#") ->  | L39: =[2]!SUMSTRING(G39:J39,"|") -> 
A40: 14 | B40: 5500 | D40: 3 | E40: 90 | G40: =[2]!SUMSTRING(A40:B40,"#") ->  | J40: =[2]!SUMSTRING(D40:E40,"#") ->  | L40: =[2]!SUMSTRING(G40:J40,"|") -> 
A41: 14 | B41: 5700 | D41: 3 | E41: 92 | G41: =[2]!SUMSTRING(A41:B41,"#") ->  | J41: =[2]!SUMSTRING(D41:E41,"#") ->  | L41: =[2]!SUMSTRING(G41:J41,"|") -> 
A42: 14 | B42: 5900 | D42: 3 | E42: 94 | G42: =[2]!SUMSTRING(A42:B42,"#") ->  | J42: =[2]!SUMSTRING(D42:E42,"#") ->  | L42: =[2]!SUMSTRING(G42:J42,"|") -> 
A43: 14 | B43: 6100 | D43: 3 | E43: 96 | G43: =[2]!SUMSTRING(A43:B43,"#") ->  | J43: =[2]!SUMSTRING(D43:E43,"#") ->  | L43: =[2]!SUMSTRING(G43:J43,"|") -> 
A44: 14 | B44: 6300 | D44: 3 | E44: 98 | G44: =[2]!SUMSTRING(A44:B44,"#") ->  | J44: =[2]!SUMSTRING(D44:E44,"#") ->  | L44: =[2]!SUMSTRING(G44:J44,"|") -> 
A45: 14 | B45: 6500 | D45: 3 | E45: 100 | G45: =[2]!SUMSTRING(A45:B45,"#") ->  | J45: =[2]!SUMSTRING(D45:E45,"#") ->  | L45: =[2]!SUMSTRING(G45:J45,"|") -> 
A46: 14 | B46: 6700 | D46: 3 | E46: 102 | G46: =[2]!SUMSTRING(A46:B46,"#") ->  | J46: =[2]!SUMSTRING(D46:E46,"#") ->  | L46: =[2]!SUMSTRING(G46:J46,"|") -> 
A47: 14 | B47: 6900 | D47: 3 | E47: 104 | G47: =[2]!SUMSTRING(A47:B47,"#") ->  | J47: =[2]!SUMSTRING(D47:E47,"#") ->  | L47: =[2]!SUMSTRING(G47:J47,"|") -> 
A48: 14 | B48: 7100 | D48: 3 | E48: 106 | G48: =[2]!SUMSTRING(A48:B48,"#") ->  | J48: =[2]!SUMSTRING(D48:E48,"#") ->  | L48: =[2]!SUMSTRING(G48:J48,"|") -> 
A49: 14 | B49: 7300 | D49: 3 | E49: 108 | G49: =[2]!SUMSTRING(A49:B49,"#") ->  | J49: =[2]!SUMSTRING(D49:E49,"#") ->  | L49: =[2]!SUMSTRING(G49:J49,"|") -> 
A50: 14 | B50: 7500 | D50: 3 | E50: 110 | G50: =[2]!SUMSTRING(A50:B50,"#") ->  | J50: =[2]!SUMSTRING(D50:E50,"#") ->  | L50: =[2]!SUMSTRING(G50:J50,"|") -> 
A51: 14 | B51: 7700 | D51: 3 | E51: 112 | G51: =[2]!SUMSTRING(A51:B51,"#") ->  | J51: =[2]!SUMSTRING(D51:E51,"#") ->  | L51: =[2]!SUMSTRING(G51:J51,"|") -> 
A52: 14 | B52: 7900 | D52: 3 | E52: 114 | G52: =[2]!SUMSTRING(A52:B52,"#") ->  | J52: =[2]!SUMSTRING(D52:E52,"#") ->  | L52: =[2]!SUMSTRING(G52:J52,"|") -> 
A53: 14 | B53: 8100 | D53: 3 | E53: 116 | G53: =[2]!SUMSTRING(A53:B53,"#") ->  | J53: =[2]!SUMSTRING(D53:E53,"#") ->  | L53: =[2]!SUMSTRING(G53:J53,"|") -> 
A54: 14 | B54: 8300 | D54: 3 | E54: 118 | G54: =[2]!SUMSTRING(A54:B54,"#") ->  | J54: =[2]!SUMSTRING(D54:E54,"#") ->  | L54: =[2]!SUMSTRING(G54:J54,"|") -> 
A55: 14 | B55: 8500 | D55: 3 | E55: 120 | G55: =[2]!SUMSTRING(A55:B55,"#") ->  | J55: =[2]!SUMSTRING(D55:E55,"#") ->  | L55: =[2]!SUMSTRING(G55:J55,"|") -> 
A56: 14 | B56: 8700 | D56: 3 | E56: 122 | G56: =[2]!SUMSTRING(A56:B56,"#") ->  | J56: =[2]!SUMSTRING(D56:E56,"#") ->  | L56: =[2]!SUMSTRING(G56:J56,"|") -> 
A57: 14 | B57: 8900 | D57: 3 | E57: 124 | G57: =[2]!SUMSTRING(A57:B57,"#") ->  | J57: =[2]!SUMSTRING(D57:E57,"#") ->  | L57: =[2]!SUMSTRING(G57:J57,"|") -> 
A58: 14 | B58: 9100 | D58: 3 | E58: 126 | G58: =[2]!SUMSTRING(A58:B58,"#") ->  | J58: =[2]!SUMSTRING(D58:E58,"#") ->  | L58: =[2]!SUMSTRING(G58:J58,"|") -> 
A59: 14 | B59: 9300 | D59: 3 | E59: 128 | G59: =[2]!SUMSTRING(A59:B59,"#") ->  | J59: =[2]!SUMSTRING(D59:E59,"#") ->  | L59: =[2]!SUMSTRING(G59:J59,"|") -> 
A60: 14 | B60: 10000 | D60: 3 | E60: 130 | G60: =[2]!SUMSTRING(A60:B60,"#") ->  | J60: =[2]!SUMSTRING(D60:E60,"#") ->  | L60: =[2]!SUMSTRING(G60:J60,"|") -> 
A61: 14 | B61: 10700 | D61: 3 | E61: 132 | G61: =[2]!SUMSTRING(A61:B61,"#") ->  | J61: =[2]!SUMSTRING(D61:E61,"#") ->  | L61: =[2]!SUMSTRING(G61:J61,"|") -> 
A62: 14 | B62: 11400 | D62: 3 | E62: 134 | G62: =[2]!SUMSTRING(A62:B62,"#") ->  | J62: =[2]!SUMSTRING(D62:E62,"#") ->  | L62: =[2]!SUMSTRING(G62:J62,"|") -> 
A63: 14 | B63: 12100 | D63: 3 | E63: 136 | G63: =[2]!SUMSTRING(A63:B63,"#") ->  | J63: =[2]!SUMSTRING(D63:E63,"#") ->  | L63: =[2]!SUMSTRING(G63:J63,"|") -> 
A64: 14 | B64: 12800 | D64: 3 | E64: 138 | G64: =[2]!SUMSTRING(A64:B64,"#") ->  | J64: =[2]!SUMSTRING(D64:E64,"#") ->  | L64: =[2]!SUMSTRING(G64:J64,"|") -> 
A65: 14 | B65: 13500 | D65: 3 | E65: 140 | G65: =[2]!SUMSTRING(A65:B65,"#") ->  | J65: =[2]!SUMSTRING(D65:E65,"#") ->  | L65: =[2]!SUMSTRING(G65:J65,"|") -> 
A66: 14 | B66: 14200 | D66: 3 | E66: 142 | G66: =[2]!SUMSTRING(A66:B66,"#") ->  | J66: =[2]!SUMSTRING(D66:E66,"#") ->  | L66: =[2]!SUMSTRING(G66:J66,"|") -> 
A67: 14 | B67: 14900 | D67: 3 | E67: 144 | G67: =[2]!SUMSTRING(A67:B67,"#") ->  | J67: =[2]!SUMSTRING(D67:E67,"#") ->  | L67: =[2]!SUMSTRING(G67:J67,"|") -> 
A68: 14 | B68: 15600 | D68: 3 | E68: 146 | G68: =[2]!SUMSTRING(A68:B68,"#") ->  | J68: =[2]!SUMSTRING(D68:E68,"#") ->  | L68: =[2]!SUMSTRING(G68:J68,"|") -> 
A69: 14 | B69: 16300 | D69: 3 | E69: 148 | G69: =[2]!SUMSTRING(A69:B69,"#") ->  | J69: =[2]!SUMSTRING(D69:E69,"#") ->  | L69: =[2]!SUMSTRING(G69:J69,"|") -> 
A70: 14 | B70: 17000 | D70: 3 | E70: 150 | G70: =[2]!SUMSTRING(A70:B70,"#") ->  | J70: =[2]!SUMSTRING(D70:E70,"#") ->  | L70: =[2]!SUMSTRING(G70:J70,"|") -> 
A71: 14 | B71: 17700 | D71: 3 | E71: 152 | G71: =[2]!SUMSTRING(A71:B71,"#") ->  | J71: =[2]!SUMSTRING(D71:E71,"#") ->  | L71: =[2]!SUMSTRING(G71:J71,"|") -> 
A72: 14 | B72: 18400 | D72: 3 | E72: 154 | G72: =[2]!SUMSTRING(A72:B72,"#") ->  | J72: =[2]!SUMSTRING(D72:E72,"#") ->  | L72: =[2]!SUMSTRING(G72:J72,"|") -> 
A73: 14 | B73: 19100 | D73: 3 | E73: 156 | G73: =[2]!SUMSTRING(A73:B73,"#") ->  | J73: =[2]!SUMSTRING(D73:E73,"#") ->  | L73: =[2]!SUMSTRING(G73:J73,"|") -> 
A74: 14 | B74: 19800 | D74: 3 | E74: 158 | G74: =[2]!SUMSTRING(A74:B74,"#") ->  | J74: =[2]!SUMSTRING(D74:E74,"#") ->  | L74: =[2]!SUMSTRING(G74:J74,"|") -> 
A75: 14 | B75: 20500 | D75: 3 | E75: 160 | G75: =[2]!SUMSTRING(A75:B75,"#") ->  | J75: =[2]!SUMSTRING(D75:E75,"#") ->  | L75: =[2]!SUMSTRING(G75:J75,"|") -> 
A76: 14 | B76: 21200 | D76: 3 | E76: 162 | G76: =[2]!SUMSTRING(A76:B76,"#") ->  | J76: =[2]!SUMSTRING(D76:E76,"#") ->  | L76: =[2]!SUMSTRING(G76:J76,"|") -> 
A77: 14 | B77: 21900 | D77: 3 | E77: 164 | G77: =[2]!SUMSTRING(A77:B77,"#") ->  | J77: =[2]!SUMSTRING(D77:E77,"#") ->  | L77: =[2]!SUMSTRING(G77:J77,"|") -> 
A78: 14 | B78: 22600 | D78: 3 | E78: 166 | G78: =[2]!SUMSTRING(A78:B78,"#") ->  | J78: =[2]!SUMSTRING(D78:E78,"#") ->  | L78: =[2]!SUMSTRING(G78:J78,"|") -> 
A79: 14 | B79: 23300 | D79: 3 | E79: 168 | G79: =[2]!SUMSTRING(A79:B79,"#") ->  | J79: =[2]!SUMSTRING(D79:E79,"#") ->  | L79: =[2]!SUMSTRING(G79:J79,"|") -> 
A80: 14 | B80: 24000 | D80: 3 | E80: 170 | G80: =[2]!SUMSTRING(A80:B80,"#") ->  | J80: =[2]!SUMSTRING(D80:E80,"#") ->  | L80: =[2]!SUMSTRING(G80:J80,"|") -> 
A81: 14 | B81: 24700 | D81: 3 | E81: 172 | G81: =[2]!SUMSTRING(A81:B81,"#") ->  | J81: =[2]!SUMSTRING(D81:E81,"#") ->  | L81: =[2]!SUMSTRING(G81:J81,"|") -> 
A82: 14 | B82: 25400 | D82: 3 | E82: 174 | G82: =[2]!SUMSTRING(A82:B82,"#") ->  | J82: =[2]!SUMSTRING(D82:E82,"#") ->  | L82: =[2]!SUMSTRING(G82:J82,"|") -> 
A83: 14 | B83: 26100 | D83: 3 | E83: 176 | G83: =[2]!SUMSTRING(A83:B83,"#") ->  | J83: =[2]!SUMSTRING(D83:E83,"#") ->  | L83: =[2]!SUMSTRING(G83:J83,"|") -> 
A84: 14 | B84: 26800 | D84: 3 | E84: 178 | G84: =[2]!SUMSTRING(A84:B84,"#") ->  | J84: =[2]!SUMSTRING(D84:E84,"#") ->  | L84: =[2]!SUMSTRING(G84:J84,"|") -> 
A85: 14 | B85: 27500 | D85: 3 | E85: 180 | G85: =[2]!SUMSTRING(A85:B85,"#") ->  | J85: =[2]!SUMSTRING(D85:E85,"#") ->  | L85: =[2]!SUMSTRING(G85:J85,"|") -> 
A86: 14 | B86: 28200 | D86: 3 | E86: 182 | G86: =[2]!SUMSTRING(A86:B86,"#") ->  | J86: =[2]!SUMSTRING(D86:E86,"#") ->  | L86: =[2]!SUMSTRING(G86:J86,"|") -> 
A87: 14 | B87: 28900 | D87: 3 | E87: 184 | G87: =[2]!SUMSTRING(A87:B87,"#") ->  | J87: =[2]!SUMSTRING(D87:E87,"#") ->  | L87: =[2]!SUMSTRING(G87:J87,"|") -> 
A88: 14 | B88: 29600 | D88: 3 | E88: 186 | G88: =[2]!SUMSTRING(A88:B88,"#") ->  | J88: =[2]!SUMSTRING(D88:E88,"#") ->  | L88: =[2]!SUMSTRING(G88:J88,"|") -> 
A89: 14 | B89: 30300 | D89: 3 | E89: 188 | G89: =[2]!SUMSTRING(A89:B89,"#") ->  | J89: =[2]!SUMSTRING(D89:E89,"#") ->  | L89: =[2]!SUMSTRING(G89:J89,"|") -> 
A90: 14 | B90: 31000 | D90: 3 | E90: 190 | G90: =[2]!SUMSTRING(A90:B90,"#") ->  | J90: =[2]!SUMSTRING(D90:E90,"#") ->  | L90: =[2]!SUMSTRING(G90:J90,"|") -> 
A91: 14 | B91: 31700 | D91: 3 | E91: 192 | G91: =[2]!SUMSTRING(A91:B91,"#") ->  | J91: =[2]!SUMSTRING(D91:E91,"#") ->  | L91: =[2]!SUMSTRING(G91:J91,"|") -> 
A92: 14 | B92: 32400 | D92: 3 | E92: 194 | G92: =[2]!SUMSTRING(A92:B92,"#") ->  | J92: =[2]!SUMSTRING(D92:E92,"#") ->  | L92: =[2]!SUMSTRING(G92:J92,"|") -> 
A93: 14 | B93: 33100 | D93: 3 | E93: 196 | G93: =[2]!SUMSTRING(A93:B93,"#") ->  | J93: =[2]!SUMSTRING(D93:E93,"#") ->  | L93: =[2]!SUMSTRING(G93:J93,"|") -> 
A94: 14 | B94: 33800 | D94: 3 | E94: 198 | G94: =[2]!SUMSTRING(A94:B94,"#") ->  | J94: =[2]!SUMSTRING(D94:E94,"#") ->  | L94: =[2]!SUMSTRING(G94:J94,"|") -> 
A95: 14 | B95: 34500 | D95: 3 | E95: 200 | G95: =[2]!SUMSTRING(A95:B95,"#") ->  | J95: =[2]!SUMSTRING(D95:E95,"#") ->  | L95: =[2]!SUMSTRING(G95:J95,"|") -> 
A96: 14 | B96: 35200 | D96: 3 | E96: 202 | G96: =[2]!SUMSTRING(A96:B96,"#") ->  | J96: =[2]!SUMSTRING(D96:E96,"#") ->  | L96: =[2]!SUMSTRING(G96:J96,"|") -> 
A97: 14 | B97: 35900 | D97: 3 | E97: 204 | G97: =[2]!SUMSTRING(A97:B97,"#") ->  | J97: =[2]!SUMSTRING(D97:E97,"#") ->  | L97: =[2]!SUMSTRING(G97:J97,"|") -> 
A98: 14 | B98: 36600 | D98: 3 | E98: 206 | G98: =[2]!SUMSTRING(A98:B98,"#") ->  | J98: =[2]!SUMSTRING(D98:E98,"#") ->  | L98: =[2]!SUMSTRING(G98:J98,"|") -> 
A99: 14 | B99: 37300 | D99: 3 | E99: 208 | G99: =[2]!SUMSTRING(A99:B99,"#") ->  | J99: =[2]!SUMSTRING(D99:E99,"#") ->  | L99: =[2]!SUMSTRING(G99:J99,"|") -> 
A100: 14 | B100: 38000 | D100: 3 | E100: 228 | G100: =[2]!SUMSTRING(A100:B100,"#") ->  | J100: =[2]!SUMSTRING(D100:E100,"#") ->  | L100: =[2]!SUMSTRING(G100:J100,"|") -> 
A101: 14 | B101: 39000 | D101: 3 | E101: 248 | G101: =[2]!SUMSTRING(A101:B101,"#") ->  | J101: =[2]!SUMSTRING(D101:E101,"#") ->  | L101: =[2]!SUMSTRING(G101:J101,"|") -> 
A102: 14 | B102: 40000 | D102: 3 | E102: 268 | G102: =[2]!SUMSTRING(A102:B102,"#") ->  | J102: =[2]!SUMSTRING(D102:E102,"#") ->  | L102: =[2]!SUMSTRING(G102:J102,"|") -> 
A103: 14 | B103: 41000 | D103: 3 | E103: 288 | G103: =[2]!SUMSTRING(A103:B103,"#") ->  | J103: =[2]!SUMSTRING(D103:E103,"#") ->  | L103: =[2]!SUMSTRING(G103:J103,"|") -> 
A104: 14 | B104: 42000 | D104: 3 | E104: 308 | G104: =[2]!SUMSTRING(A104:B104,"#") ->  | J104: =[2]!SUMSTRING(D104:E104,"#") ->  | L104: =[2]!SUMSTRING(G104:J104,"|") -> 
A105: 14 | B105: 43000 | D105: 3 | E105: 328 | G105: =[2]!SUMSTRING(A105:B105,"#") ->  | J105: =[2]!SUMSTRING(D105:E105,"#") ->  | L105: =[2]!SUMSTRING(G105:J105,"|") -> 
A106: 14 | B106: 44000 | D106: 3 | E106: 348 | G106: =[2]!SUMSTRING(A106:B106,"#") ->  | J106: =[2]!SUMSTRING(D106:E106,"#") ->  | L106: =[2]!SUMSTRING(G106:J106,"|") -> 
A107: 14 | B107: 45000 | D107: 3 | E107: 368 | G107: =[2]!SUMSTRING(A107:B107,"#") ->  | J107: =[2]!SUMSTRING(D107:E107,"#") ->  | L107: =[2]!SUMSTRING(G107:J107,"|") -> 
A108: 14 | B108: 46000 | D108: 3 | E108: 388 | G108: =[2]!SUMSTRING(A108:B108,"#") ->  | J108: =[2]!SUMSTRING(D108:E108,"#") ->  | L108: =[2]!SUMSTRING(G108:J108,"|") -> 
A109: 14 | B109: 47000 | D109: 3 | E109: 408 | G109: =[2]!SUMSTRING(A109:B109,"#") ->  | J109: =[2]!SUMSTRING(D109:E109,"#") ->  | L109: =[2]!SUMSTRING(G109:J109,"|") -> 
A110: 14 | B110: 48000 | D110: 3 | E110: 428 | G110: =[2]!SUMSTRING(A110:B110,"#") ->  | J110: =[2]!SUMSTRING(D110:E110,"#") ->  | L110: =[2]!SUMSTRING(G110:J110,"|") -> 
A111: 14 | B111: 49000 | D111: 3 | E111: 448 | G111: =[2]!SUMSTRING(A111:B111,"#") ->  | J111: =[2]!SUMSTRING(D111:E111,"#") ->  | L111: =[2]!SUMSTRING(G111:J111,"|") -> 
A112: 14 | B112: 50000 | D112: 3 | E112: 468 | G112: =[2]!SUMSTRING(A112:B112,"#") ->  | J112: =[2]!SUMSTRING(D112:E112,"#") ->  | L112: =[2]!SUMSTRING(G112:J112,"|") -> 
A113: 14 | B113: 51000 | D113: 3 | E113: 488 | G113: =[2]!SUMSTRING(A113:B113,"#") ->  | J113: =[2]!SUMSTRING(D113:E113,"#") ->  | L113: =[2]!SUMSTRING(G113:J113,"|") -> 
A114: 14 | B114: 52000 | D114: 3 | E114: 508 | G114: =[2]!SUMSTRING(A114:B114,"#") ->  | J114: =[2]!SUMSTRING(D114:E114,"#") ->  | L114: =[2]!SUMSTRING(G114:J114,"|") -> 
A115: 14 | B115: 53000 | D115: 3 | E115: 528 | G115: =[2]!SUMSTRING(A115:B115,"#") ->  | J115: =[2]!SUMSTRING(D115:E115,"#") ->  | L115: =[2]!SUMSTRING(G115:J115,"|") -> 
A116: 14 | B116: 54000 | D116: 3 | E116: 548 | G116: =[2]!SUMSTRING(A116:B116,"#") ->  | J116: =[2]!SUMSTRING(D116:E116,"#") ->  | L116: =[2]!SUMSTRING(G116:J116,"|") -> 
A117: 14 | B117: 55000 | D117: 3 | E117: 568 | G117: =[2]!SUMSTRING(A117:B117,"#") ->  | J117: =[2]!SUMSTRING(D117:E117,"#") ->  | L117: =[2]!SUMSTRING(G117:J117,"|") -> 
A118: 14 | B118: 56000 | D118: 3 | E118: 588 | G118: =[2]!SUMSTRING(A118:B118,"#") ->  | J118: =[2]!SUMSTRING(D118:E118,"#") ->  | L118: =[2]!SUMSTRING(G118:J118,"|") -> 
A119: 14 | B119: 57000 | D119: 3 | E119: 608 | G119: =[2]!SUMSTRING(A119:B119,"#") ->  | J119: =[2]!SUMSTRING(D119:E119,"#") ->  | L119: =[2]!SUMSTRING(G119:J119,"|") -> 
A120: 14 | B120: 58000 | D120: 3 | E120: 628 | G120: =[2]!SUMSTRING(A120:B120,"#") ->  | J120: =[2]!SUMSTRING(D120:E120,"#") ->  | L120: =[2]!SUMSTRING(G120:J120,"|") -> 
A121: 14 | B121: 59000 | D121: 3 | E121: 648 | G121: =[2]!SUMSTRING(A121:B121,"#") ->  | J121: =[2]!SUMSTRING(D121:E121,"#") ->  | L121: =[2]!SUMSTRING(G121:J121,"|") -> 
A122: 14 | B122: 60000 | D122: 3 | E122: 668 | G122: =[2]!SUMSTRING(A122:B122,"#") ->  | J122: =[2]!SUMSTRING(D122:E122,"#") ->  | L122: =[2]!SUMSTRING(G122:J122,"|") -> 
A123: 14 | B123: 61000 | D123: 3 | E123: 688 | G123: =[2]!SUMSTRING(A123:B123,"#") ->  | J123: =[2]!SUMSTRING(D123:E123,"#") ->  | L123: =[2]!SUMSTRING(G123:J123,"|") -> 
A124: 14 | B124: 62000 | D124: 3 | E124: 708 | G124: =[2]!SUMSTRING(A124:B124,"#") ->  | J124: =[2]!SUMSTRING(D124:E124,"#") ->  | L124: =[2]!SUMSTRING(G124:J124,"|") -> 
A125: 14 | B125: 63000 | D125: 3 | E125: 728 | G125: =[2]!SUMSTRING(A125:B125,"#") ->  | J125: =[2]!SUMSTRING(D125:E125,"#") ->  | L125: =[2]!SUMSTRING(G125:J125,"|") -> 
A126: 14 | B126: 64000 | D126: 3 | E126: 748 | G126: =[2]!SUMSTRING(A126:B126,"#") ->  | J126: =[2]!SUMSTRING(D126:E126,"#") ->  | L126: =[2]!SUMSTRING(G126:J126,"|") -> 
A127: 14 | B127: 65000 | D127: 3 | E127: 768 | G127: =[2]!SUMSTRING(A127:B127,"#") ->  | J127: =[2]!SUMSTRING(D127:E127,"#") ->  | L127: =[2]!SUMSTRING(G127:J127,"|") -> 
A128: 14 | B128: 66000 | D128: 3 | E128: 788 | G128: =[2]!SUMSTRING(A128:B128,"#") ->  | J128: =[2]!SUMSTRING(D128:E128,"#") ->  | L128: =[2]!SUMSTRING(G128:J128,"|") -> 
A129: 14 | B129: 67000 | D129: 3 | E129: 808 | G129: =[2]!SUMSTRING(A129:B129,"#") ->  | J129: =[2]!SUMSTRING(D129:E129,"#") ->  | L129: =[2]!SUMSTRING(G129:J129,"|") -> 
A130: 14 | B130: 68000 | D130: 3 | E130: 828 | G130: =[2]!SUMSTRING(A130:B130,"#") ->  | J130: =[2]!SUMSTRING(D130:E130,"#") ->  | L130: =[2]!SUMSTRING(G130:J130,"|") -> 
A131: 14 | B131: 69000 | D131: 3 | E131: 848 | G131: =[2]!SUMSTRING(A131:B131,"#") ->  | J131: =[2]!SUMSTRING(D131:E131,"#") ->  | L131: =[2]!SUMSTRING(G131:J131,"|") -> 
A132: 14 | B132: 70000 | D132: 3 | E132: 868 | G132: =[2]!SUMSTRING(A132:B132,"#") ->  | J132: =[2]!SUMSTRING(D132:E132,"#") ->  | L132: =[2]!SUMSTRING(G132:J132,"|") -> 
A133: 14 | B133: 71000 | D133: 3 | E133: 888 | G133: =[2]!SUMSTRING(A133:B133,"#") ->  | J133: =[2]!SUMSTRING(D133:E133,"#") ->  | L133: =[2]!SUMSTRING(G133:J133,"|") -> 
A134: 14 | B134: 72000 | D134: 3 | E134: 908 | G134: =[2]!SUMSTRING(A134:B134,"#") ->  | J134: =[2]!SUMSTRING(D134:E134,"#") ->  | L134: =[2]!SUMSTRING(G134:J134,"|") -> 
A135: 14 | B135: 73000 | D135: 3 | E135: 928 | G135: =[2]!SUMSTRING(A135:B135,"#") ->  | J135: =[2]!SUMSTRING(D135:E135,"#") ->  | L135: =[2]!SUMSTRING(G135:J135,"|") -> 
A136: 14 | B136: 74000 | D136: 3 | E136: 948 | G136: =[2]!SUMSTRING(A136:B136,"#") ->  | J136: =[2]!SUMSTRING(D136:E136,"#") ->  | L136: =[2]!SUMSTRING(G136:J136,"|") -> 
A137: 14 | B137: 75000 | D137: 3 | E137: 968 | G137: =[2]!SUMSTRING(A137:B137,"#") ->  | J137: =[2]!SUMSTRING(D137:E137,"#") ->  | L137: =[2]!SUMSTRING(G137:J137,"|") -> 
A138: 14 | B138: 76000 | D138: 3 | E138: 988 | G138: =[2]!SUMSTRING(A138:B138,"#") ->  | J138: =[2]!SUMSTRING(D138:E138,"#") ->  | L138: =[2]!SUMSTRING(G138:J138,"|") -> 
A139: 14 | B139: 77000 | D139: 3 | E139: 1008 | G139: =[2]!SUMSTRING(A139:B139,"#") ->  | J139: =[2]!SUMSTRING(D139:E139,"#") ->  | L139: =[2]!SUMSTRING(G139:J139,"|") -> 
A140: 14 | B140: 80000 | D140: 3 | E140: 1068 | G140: =[2]!SUMSTRING(A140:B140,"#") ->  | J140: =[2]!SUMSTRING(D140:E140,"#") ->  | L140: =[2]!SUMSTRING(G140:J140,"|") -> 
A141: 14 | B141: 83000 | D141: 3 | E141: 1128 | G141: =[2]!SUMSTRING(A141:B141,"#") ->  | J141: =[2]!SUMSTRING(D141:E141,"#") ->  | L141: =[2]!SUMSTRING(G141:J141,"|") -> 
A142: 14 | B142: 86000 | D142: 3 | E142: 1188 | G142: =[2]!SUMSTRING(A142:B142,"#") ->  | J142: =[2]!SUMSTRING(D142:E142,"#") ->  | L142: =[2]!SUMSTRING(G142:J142,"|") -> 
A143: 14 | B143: 89000 | D143: 3 | E143: 1248 | G143: =[2]!SUMSTRING(A143:B143,"#") ->  | J143: =[2]!SUMSTRING(D143:E143,"#") ->  | L143: =[2]!SUMSTRING(G143:J143,"|") -> 
A144: 14 | B144: 92000 | D144: 3 | E144: 1308 | G144: =[2]!SUMSTRING(A144:B144,"#") ->  | J144: =[2]!SUMSTRING(D144:E144,"#") ->  | L144: =[2]!SUMSTRING(G144:J144,"|") -> 
A145: 14 | B145: 95000 | D145: 3 | E145: 1368 | G145: =[2]!SUMSTRING(A145:B145,"#") ->  | J145: =[2]!SUMSTRING(D145:E145,"#") ->  | L145: =[2]!SUMSTRING(G145:J145,"|") -> 
A146: 14 | B146: 98000 | D146: 3 | E146: 1428 | G146: =[2]!SUMSTRING(A146:B146,"#") ->  | J146: =[2]!SUMSTRING(D146:E146,"#") ->  | L146: =[2]!SUMSTRING(G146:J146,"|") -> 
A147: 14 | B147: 101000 | D147: 3 | E147: 1488 | G147: =[2]!SUMSTRING(A147:B147,"#") ->  | J147: =[2]!SUMSTRING(D147:E147,"#") ->  | L147: =[2]!SUMSTRING(G147:J147,"|") -> 
A148: 14 | B148: 104000 | D148: 3 | E148: 1548 | G148: =[2]!SUMSTRING(A148:B148,"#") ->  | J148: =[2]!SUMSTRING(D148:E148,"#") ->  | L148: =[2]!SUMSTRING(G148:J148,"|") -> 
A149: 14 | B149: 107000 | D149: 3 | E149: 1608 | G149: =[2]!SUMSTRING(A149:B149,"#") ->  | J149: =[2]!SUMSTRING(D149:E149,"#") ->  | L149: =[2]!SUMSTRING(G149:J149,"|") -> 
A150: 14 | B150: 110000 | D150: 3 | E150: 1668 | G150: =[2]!SUMSTRING(A150:B150,"#") ->  | J150: =[2]!SUMSTRING(D150:E150,"#") ->  | L150: =[2]!SUMSTRING(G150:J150,"|") -> 
A151: 14 | B151: 113000 | D151: 3 | E151: 1728 | G151: =[2]!SUMSTRING(A151:B151,"#") ->  | J151: =[2]!SUMSTRING(D151:E151,"#") ->  | L151: =[2]!SUMSTRING(G151:J151,"|") -> 
A152: 14 | B152: 116000 | D152: 3 | E152: 1788 | G152: =[2]!SUMSTRING(A152:B152,"#") ->  | J152: =[2]!SUMSTRING(D152:E152,"#") ->  | L152: =[2]!SUMSTRING(G152:J152,"|") -> 
A153: 14 | B153: 119000 | D153: 3 | E153: 1848 | G153: =[2]!SUMSTRING(A153:B153,"#") ->  | J153: =[2]!SUMSTRING(D153:E153,"#") ->  | L153: =[2]!SUMSTRING(G153:J153,"|") -> 
A154: 14 | B154: 122000 | D154: 3 | E154: 1908 | G154: =[2]!SUMSTRING(A154:B154,"#") ->  | J154: =[2]!SUMSTRING(D154:E154,"#") ->  | L154: =[2]!SUMSTRING(G154:J154,"|") -> 
A155: 14 | B155: 125000 | D155: 3 | E155: 1968 | G155: =[2]!SUMSTRING(A155:B155,"#") ->  | J155: =[2]!SUMSTRING(D155:E155,"#") ->  | L155: =[2]!SUMSTRING(G155:J155,"|") -> 
A156: 14 | B156: 128000 | D156: 3 | E156: 2028 | G156: =[2]!SUMSTRING(A156:B156,"#") ->  | J156: =[2]!SUMSTRING(D156:E156,"#") ->  | L156: =[2]!SUMSTRING(G156:J156,"|") -> 
A157: 14 | B157: 131000 | D157: 3 | E157: 2088 | G157: =[2]!SUMSTRING(A157:B157,"#") ->  | J157: =[2]!SUMSTRING(D157:E157,"#") ->  | L157: =[2]!SUMSTRING(G157:J157,"|") -> 
A158: 14 | B158: 134000 | D158: 3 | E158: 2148 | G158: =[2]!SUMSTRING(A158:B158,"#") ->  | J158: =[2]!SUMSTRING(D158:E158,"#") ->  | L158: =[2]!SUMSTRING(G158:J158,"|") -> 
A159: 14 | B159: 137000 | D159: 3 | E159: 2208 | G159: =[2]!SUMSTRING(A159:B159,"#") ->  | J159: =[2]!SUMSTRING(D159:E159,"#") ->  | L159: =[2]!SUMSTRING(G159:J159,"|") -> 
A160: 14 | B160: 140000 | D160: 3 | E160: 2268 | G160: =[2]!SUMSTRING(A160:B160,"#") ->  | J160: =[2]!SUMSTRING(D160:E160,"#") ->  | L160: =[2]!SUMSTRING(G160:J160,"|") -> 
A161: 14 | B161: 145000 | D161: 3 | E161: 2328 | G161: =[2]!SUMSTRING(A161:B161,"#") ->  | J161: =[2]!SUMSTRING(D161:E161,"#") ->  | L161: =[2]!SUMSTRING(G161:J161,"|") -> 
A162: 14 | B162: 150000 | D162: 3 | E162: 2388 | G162: =[2]!SUMSTRING(A162:B162,"#") ->  | J162: =[2]!SUMSTRING(D162:E162,"#") ->  | L162: =[2]!SUMSTRING(G162:J162,"|") -> 
A163: 14 | B163: 155000 | D163: 3 | E163: 2448 | G163: =[2]!SUMSTRING(A163:B163,"#") ->  | J163: =[2]!SUMSTRING(D163:E163,"#") ->  | L163: =[2]!SUMSTRING(G163:J163,"|") -> 
A164: 14 | B164: 160000 | D164: 3 | E164: 2508 | G164: =[2]!SUMSTRING(A164:B164,"#") ->  | J164: =[2]!SUMSTRING(D164:E164,"#") ->  | L164: =[2]!SUMSTRING(G164:J164,"|") -> 
A165: 14 | B165: 165000 | D165: 3 | E165: 2568 | G165: =[2]!SUMSTRING(A165:B165,"#") ->  | J165: =[2]!SUMSTRING(D165:E165,"#") ->  | L165: =[2]!SUMSTRING(G165:J165,"|") -> 
A166: 14 | B166: 170000 | D166: 3 | E166: 2628 | G166: =[2]!SUMSTRING(A166:B166,"#") ->  | J166: =[2]!SUMSTRING(D166:E166,"#") ->  | L166: =[2]!SUMSTRING(G166:J166,"|") -> 
A167: 14 | B167: 175000 | D167: 3 | E167: 2688 | G167: =[2]!SUMSTRING(A167:B167,"#") ->  | J167: =[2]!SUMSTRING(D167:E167,"#") ->  | L167: =[2]!SUMSTRING(G167:J167,"|") -> 
A168: 14 | B168: 180000 | D168: 3 | E168: 2748 | G168: =[2]!SUMSTRING(A168:B168,"#") ->  | J168: =[2]!SUMSTRING(D168:E168,"#") ->  | L168: =[2]!SUMSTRING(G168:J168,"|") -> 
A169: 14 | B169: 185000 | D169: 3 | E169: 2808 | G169: =[2]!SUMSTRING(A169:B169,"#") ->  | J169: =[2]!SUMSTRING(D169:E169,"#") ->  | L169: =[2]!SUMSTRING(G169:J169,"|") -> 
A170: 14 | B170: 190000 | D170: 3 | E170: 2868 | G170: =[2]!SUMSTRING(A170:B170,"#") ->  | J170: =[2]!SUMSTRING(D170:E170,"#") ->  | L170: =[2]!SUMSTRING(G170:J170,"|") -> 
A171: 14 | B171: 195000 | D171: 3 | E171: 2928 | G171: =[2]!SUMSTRING(A171:B171,"#") ->  | J171: =[2]!SUMSTRING(D171:E171,"#") ->  | L171: =[2]!SUMSTRING(G171:J171,"|") -> 
A172: 14 | B172: 200000 | D172: 3 | E172: 2988 | G172: =[2]!SUMSTRING(A172:B172,"#") ->  | J172: =[2]!SUMSTRING(D172:E172,"#") ->  | L172: =[2]!SUMSTRING(G172:J172,"|") -> 
A173: 14 | B173: 205000 | D173: 3 | E173: 3048 | G173: =[2]!SUMSTRING(A173:B173,"#") ->  | J173: =[2]!SUMSTRING(D173:E173,"#") ->  | L173: =[2]!SUMSTRING(G173:J173,"|") -> 
A174: 14 | B174: 210000 | D174: 3 | E174: 3108 | G174: =[2]!SUMSTRING(A174:B174,"#") ->  | J174: =[2]!SUMSTRING(D174:E174,"#") ->  | L174: =[2]!SUMSTRING(G174:J174,"|") -> 
A175: 14 | B175: 215000 | D175: 3 | E175: 3168 | G175: =[2]!SUMSTRING(A175:B175,"#") ->  | J175: =[2]!SUMSTRING(D175:E175,"#") ->  | L175: =[2]!SUMSTRING(G175:J175,"|") -> 
A176: 14 | B176: 220000 | D176: 3 | E176: 3228 | G176: =[2]!SUMSTRING(A176:B176,"#") ->  | J176: =[2]!SUMSTRING(D176:E176,"#") ->  | L176: =[2]!SUMSTRING(G176:J176,"|") -> 
A177: 14 | B177: 225000 | D177: 3 | E177: 3288 | G177: =[2]!SUMSTRING(A177:B177,"#") ->  | J177: =[2]!SUMSTRING(D177:E177,"#") ->  | L177: =[2]!SUMSTRING(G177:J177,"|") -> 
A178: 14 | B178: 230000 | D178: 3 | E178: 3348 | G178: =[2]!SUMSTRING(A178:B178,"#") ->  | J178: =[2]!SUMSTRING(D178:E178,"#") ->  | L178: =[2]!SUMSTRING(G178:J178,"|") -> 
A179: 14 | B179: 235000 | D179: 3 | E179: 3408 | G179: =[2]!SUMSTRING(A179:B179,"#") ->  | J179: =[2]!SUMSTRING(D179:E179,"#") ->  | L179: =[2]!SUMSTRING(G179:J179,"|") -> 
A180: 14 | B180: 240000 | D180: 3 | E180: 3468 | G180: =[2]!SUMSTRING(A180:B180,"#") ->  | J180: =[2]!SUMSTRING(D180:E180,"#") ->  | L180: =[2]!SUMSTRING(G180:J180,"|") -> 
A181: 14 | B181: 245000 | D181: 3 | E181: 3528 | G181: =[2]!SUMSTRING(A181:B181,"#") ->  | J181: =[2]!SUMSTRING(D181:E181,"#") ->  | L181: =[2]!SUMSTRING(G181:J181,"|") -> 
A182: 14 | B182: 250000 | D182: 3 | E182: 3588 | G182: =[2]!SUMSTRING(A182:B182,"#") ->  | J182: =[2]!SUMSTRING(D182:E182,"#") ->  | L182: =[2]!SUMSTRING(G182:J182,"|") -> 
A183: 14 | B183: 255000 | D183: 3 | E183: 3648 | G183: =[2]!SUMSTRING(A183:B183,"#") ->  | J183: =[2]!SUMSTRING(D183:E183,"#") ->  | L183: =[2]!SUMSTRING(G183:J183,"|") -> 
A184: 14 | B184: 260000 | D184: 3 | E184: 3708 | G184: =[2]!SUMSTRING(A184:B184,"#") ->  | J184: =[2]!SUMSTRING(D184:E184,"#") ->  | L184: =[2]!SUMSTRING(G184:J184,"|") -> 
A185: 14 | B185: 265000 | D185: 3 | E185: 3768 | G185: =[2]!SUMSTRING(A185:B185,"#") ->  | J185: =[2]!SUMSTRING(D185:E185,"#") ->  | L185: =[2]!SUMSTRING(G185:J185,"|") -> 
A186: 14 | B186: 270000 | D186: 3 | E186: 3828 | G186: =[2]!SUMSTRING(A186:B186,"#") ->  | J186: =[2]!SUMSTRING(D186:E186,"#") ->  | L186: =[2]!SUMSTRING(G186:J186,"|") -> 
A187: 14 | B187: 275000 | D187: 3 | E187: 3888 | G187: =[2]!SUMSTRING(A187:B187,"#") ->  | J187: =[2]!SUMSTRING(D187:E187,"#") ->  | L187: =[2]!SUMSTRING(G187:J187,"|") -> 
A188: 14 | B188: 280000 | D188: 3 | E188: 3948 | G188: =[2]!SUMSTRING(A188:B188,"#") ->  | J188: =[2]!SUMSTRING(D188:E188,"#") ->  | L188: =[2]!SUMSTRING(G188:J188,"|") -> 
A189: 14 | B189: 285000 | D189: 3 | E189: 4008 | G189: =[2]!SUMSTRING(A189:B189,"#") ->  | J189: =[2]!SUMSTRING(D189:E189,"#") ->  | L189: =[2]!SUMSTRING(G189:J189,"|") -> 
A190: 14 | B190: 290000 | D190: 3 | E190: 4068 | G190: =[2]!SUMSTRING(A190:B190,"#") ->  | J190: =[2]!SUMSTRING(D190:E190,"#") ->  | L190: =[2]!SUMSTRING(G190:J190,"|") -> 
A191: 14 | B191: 295000 | D191: 3 | E191: 4128 | G191: =[2]!SUMSTRING(A191:B191,"#") ->  | J191: =[2]!SUMSTRING(D191:E191,"#") ->  | L191: =[2]!SUMSTRING(G191:J191,"|") -> 
A192: 14 | B192: 300000 | D192: 3 | E192: 4188 | G192: =[2]!SUMSTRING(A192:B192,"#") ->  | J192: =[2]!SUMSTRING(D192:E192,"#") ->  | L192: =[2]!SUMSTRING(G192:J192,"|") -> 
A193: 14 | B193: 305000 | D193: 3 | E193: 4248 | G193: =[2]!SUMSTRING(A193:B193,"#") ->  | J193: =[2]!SUMSTRING(D193:E193,"#") ->  | L193: =[2]!SUMSTRING(G193:J193,"|") -> 
A194: 14 | B194: 310000 | D194: 3 | E194: 4308 | G194: =[2]!SUMSTRING(A194:B194,"#") ->  | J194: =[2]!SUMSTRING(D194:E194,"#") ->  | L194: =[2]!SUMSTRING(G194:J194,"|") -> 
A195: 14 | B195: 315000 | D195: 3 | E195: 4368 | G195: =[2]!SUMSTRING(A195:B195,"#") ->  | J195: =[2]!SUMSTRING(D195:E195,"#") ->  | L195: =[2]!SUMSTRING(G195:J195,"|") -> 
A196: 14 | B196: 320000 | D196: 3 | E196: 4428 | G196: =[2]!SUMSTRING(A196:B196,"#") ->  | J196: =[2]!SUMSTRING(D196:E196,"#") ->  | L196: =[2]!SUMSTRING(G196:J196,"|") -> 
A197: 14 | B197: 325000 | D197: 3 | E197: 4488 | G197: =[2]!SUMSTRING(A197:B197,"#") ->  | J197: =[2]!SUMSTRING(D197:E197,"#") ->  | L197: =[2]!SUMSTRING(G197:J197,"|") -> 
A198: 14 | B198: 330000 | D198: 3 | E198: 4548 | G198: =[2]!SUMSTRING(A198:B198,"#") ->  | J198: =[2]!SUMSTRING(D198:E198,"#") ->  | L198: =[2]!SUMSTRING(G198:J198,"|") -> 
A199: 14 | B199: 335000 | D199: 3 | E199: 4596 | G199: =[2]!SUMSTRING(A199:B199,"#") ->  | J199: =[2]!SUMSTRING(D199:E199,"#") ->  | L199: =[2]!SUMSTRING(G199:J199,"|") -> 
A200: 14 | B200: 340000 | D200: 3 | E200: 4716 | G200: =[2]!SUMSTRING(A200:B200,"#") ->  | J200: =[2]!SUMSTRING(D200:E200,"#") ->  | L200: =[2]!SUMSTRING(G200:J200,"|") -> 
... 50 more rows

Sheet 点金增益
E6: 基数 | F6: 28000 | H6: 基数 | I6: 28000 | L6: 基数 | M6: 28000 | O6: 基数 | P6: 28000
E8: 等级 | F8: 点金倍率 | L8: 等级 | M8: 点金倍率
E9: 20 | F9: 1 | G9: =ROUND($F$7*F9,0) -> 0 | L9: 20 | M9: 1 | N9: =ROUND($F$7*M9,0) -> 0
E10: 30 | F10: 2.357100766 | G10: 0 | H10: =F10-1 -> 1.357100766 | I10: =INT(H10*10000) -> 13571 | J10: 13600 | L10: 30 | M10: =M9+0.5 -> 1.5 | N10: 0 | O10: =M10-1 -> 0.5 | P10: =INT(O10*10000) -> 5000 | Q10: 13600
E11: 40 | F11: 5.21410332 | G11: 0 | H11: 4.21410332 | I11: 42141 | J11: 42200 | L11: 40 | M11: 2 | N11: 0 | O11: 1 | P11: 10000 | Q11: 42200
E12: 50 | F12: 11.1426046 | G12: 0 | H12: 10.1426046 | I12: 101426 | J12: 101500 | L12: 50 | M12: 2.5 | N12: 0 | O12: 1.5 | P12: 15000 | Q12: 101500
E13: 60 | F13: 18.71400511 | G13: 0 | H13: 17.71400511 | I13: 177140 | J13: 177200 | L13: 60 | M13: 3 | N13: 0 | O13: 2 | P13: 20000 | Q13: 177200
E14: 70 | F14: 32.71361226 | G14: 0 | H14: 31.71361226 | I14: 317136 | J14: 317200 | L14: 70 | M14: 3.5 | N14: 0 | O14: 2.5 | P14: 25000 | Q14: 317200
E15: 80 | F15: 42.57061481 | G15: 0 | H15: 41.57061481 | I15: 415706 | J15: 415800 | L15: 80 | M15: 4 | N15: 0 | O15: =M15-1 -> 3 | P15: =INT(O15*10000) -> 30000 | Q15: 415800
L16: =L15+10 -> 90 | M16: 4.5 | N16: =ROUND($F$7*M16,0) -> 0 | O16: =M16-1 -> 3.5 | P16: =INT(O16*10000) -> 35000
L17: 100 | M17: 5 | N17: 0 | O17: 4 | P17: 40000
L18: 110 | M18: 5 | N18: 0 | O18: 4 | P18: 40000
L19: 120 | M19: 5 | N19: 0 | O19: 4 | P19: 40000
E20: =E6 -> 基数 | F20: =F6 -> 28000 | L20: 130 | M20: 5 | N20: 0 | O20: 4 | P20: 40000
L21: 140 | M21: 5 | N21: 0 | O21: 4 | P21: 40000
E22: =E8 -> 等级 | F22: =F8 -> 点金倍率 | G22: 实际点金 | L22: 150 | M22: 5 | N22: 0 | O22: 4 | P22: 40000
E23: 20 | F23: 1 | G23: =INT(F23*$F$20) -> 28000 | L23: 160 | M23: 5 | N23: 0 | O23: 4 | P23: 40000
E24: 30 | F24: 2.357100766 | G24: =INT(F24*$F$20) -> 65998 | L24: 170 | M24: 5 | N24: 0 | O24: 4 | P24: 40000
E25: 40 | F25: 5.21410332 | G25: 145994
E26: 50 | F26: 11.1426046 | G26: 311992
E27: 60 | F27: 18.71400511 | G27: 523992
E28: 70 | F28: 32.71361226 | G28: 915981
E29: 80 | F29: 42.57061481 | G29: 1191977
